Workbook

Sheet Admin (hidden)
C9: Variance Sign | D9: Variance Rank | E9: Function
C10: Positive | D10: 1 | E10: ENVIRONMENTAL
C11: Negative | D11: =D10+1 -> 2 | E11: FOSSIL
D12: =D11+1 -> 3 | E12: RENEWABLES
D13: 4 | E13: NEW BUSINESS TRANSMISSION
D14: 5 | E14: NEW BUSINESS DISTRIBUTION
D15: 6 | E15: OTHER TRANSMISSION
D16: 7 | E16: OTHER DISTRIBUTION
D17: 8 | E17: JOINT SUB. & DIST. LINE
D18: 9 | E18: FLEET
D19: 10 | E19: TELECOMMUNICATIONS
D20: 11 | E20: CORPORATE SERVICES
D21: 12 | E21: OTHER
D22: 13 | E22: NON-UTILITY
D23: 14
D24: 15
D25: 16
D26: 17
D27: 18
D28: 19
D29: 20

Sheet Check for New PE's (hidden)
A1: SOFIA Query | B1: Expenditure Report Line # | C1: New PE's to Add to Expenditure Report | D1: Function
A2: =PE -> 0090 | B2: =IF(OR(AVERAGE(SUMIF(PE, $A2, YTD_Actual), SUMIF(PE, $A2, YTD_Budget), SUMIF(PE, $A2, YTD_Variance_Dollars)) > 1, AVERAGE(SUMIF(PE, $A2, YTD_Actual), SUMIF(PE, $A2, YTD_Budget), SUMIF(PE, $A2, YTD_Variance_Dollars)) < -1), MATCH($A2, PE_Exp_Report, 0) + 10, 0) -> 170 | C2: =IF(ISERROR($B2), $A2, "") -> 
A3: 0091 | B3: 0
A4: 1001 | B4: 0
A5: 1002 | B5: 0
A6: 1004 | B6: 0
A7: 1005 | B7: 0
A8: 1007 | B8: 0
A9: 1009 | B9: 50
A10: 1010 | B10: 51
A11: 1013 | B11: 52
A12: 1015 | B12: 53
A13: 1017 | B13: 54
A14: 1019 | B14: 0
A15: 1024 | B15: 0
A16: 1026 | B16: 0
A17: 1028 | B17: 0
A18: 1031 | B18: 14
A19: 1033 | B19: 0
A20: 1034 | B20: 0
A21: 1038 | B21: 16
A22: 1039 | B22: 0
A23: 1042 | B23: 0
A24: 1050 | B24: 0
A25: 1051 | B25: 0
A26: 1052 | B26: 57
A27: 1053 | B27: 58
A28: 1054 | B28: 0
A29: 1060 | B29: 0
A30: 1065 | B30: 0
A31: 1066 | B31: 60
A32: 1068 | B32: 0
A33: 1069 | B33: 0
A34: 1070 | B34: 0 | C34: =IF(ISERROR($B34), $A34, "") -> 
A35: 1072 | B35: 0
A36: 1076 | B36: 0
A37: 1077 | B37: 62
A38: 1078 | B38: 0
A39: 1081 | B39: 0
A40: 1088 | B40: 0
A41: 1090 | B41: 0
A42: 1091 | B42: 0
A43: 1092 | B43: 0
A44: 1093 | B44: 0
A45: 1094 | B45: 65
A46: 1096 | B46: 0
A47: 1097 | B47: 0
A48: 1100 | B48: 66
A49: 1104 | B49: 0
A50: 1105 | B50: 0
A51: 1110 | B51: 67
A52: 1111 | B52: 68
A53: 1114 | B53: 69
A54: 1116 | B54: 0
A55: 1121 | B55: 72
A56: 1122 | B56: 73
A57: 1123 | B57: 0
A58: 1125 | B58: 0
A59: 1126 | B59: 74
A60: 1128 | B60: 0
A61: 1131 | B61: 0
A62: 1133 | B62: 75
A63: 1134 | B63: 76
A64: 1135 | B64: 0
A65: 1136 | B65: 0
A66: =PE -> 1137 | B66: =IF(OR(AVERAGE(SUMIF(PE, $A66, YTD_Actual), SUMIF(PE, $A66, YTD_Budget), SUMIF(PE, $A66, YTD_Variance_Dollars)) > 1, AVERAGE(SUMIF(PE, $A66, YTD_Actual), SUMIF(PE, $A66, YTD_Budget), SUMIF(PE, $A66, YTD_Variance_Dollars)) < -1), MATCH($A66, PE_Exp_Report, 0) + 10, 0) -> 0
A67: 1141 | B67: 80 | C67: =IF(ISERROR($B67), $A67, "") -> 
A68: 1144 | B68: 0
A69: 1146 | B69: 82
A70: 1147 | B70: 83
A71: 1148 | B71: 84
A72: 1149 | B72: 0
A73: 1150 | B73: 85
A74: 1152 | B74: 0
A75: 1155 | B75: 0
A76: 1158 | B76: 18
A77: 1159 | B77: 87
A78: 1167 | B78: 19
A79: 1169 | B79: 0
A80: 1172 | B80: 0
A81: 1173 | B81: 0
A82: 1175 | B82: 0
A83: 1177 | B83: 0
A84: 1178 | B84: 0
A85: 1191 | B85: 0
A86: 1196 | B86: 92
A87: 1199 | B87: 0
A88: 1200 | B88: 0
A89: 1201 | B89: 0
A90: 1202 | B90: 0
A91: 1203 | B91: 0
A92: 1204 | B92: 0
A93: 1209 | B93: 94
A94: 1210 | B94: 95
A95: 1211 | B95: 0
A96: 1221 | B96: 96
A97: 1222 | B97: 21
A98: 1227 | B98: 0
A99: 1230 | B99: 98
A100: 1231 | B100: 0
A101: 1233 | B101: 22
A102: 1235 | B102: 0
A103: 1237 | B103: 0
A104: 1238 | B104: 0
A105: 1244 | B105: 0
A106: 1247 | B106: 23
A107: 1249 | B107: 0
A108: 1250 | B108: 0
A109: 1251 | B109: 0
A110: 1253 | B110: 0
A111: 1254 | B111: 100
A112: 1256 | B112: 24
A113: 1257 | B113: 0
A114: 1258 | B114: 102
A115: 1259 | B115: 0
A116: 1262 | B116: 103
A117: 1266 | B117: 0
A118: 1267 | B118: 104
A119: 1272 | B119: 0
A120: 1276 | B120: 25
A121: 1278 | B121: 0
A122: 1279 | B122: 26
A123: 1280 | B123: 0
A124: 1281 | B124: 0
A125: 1283 | B125: 0
A126: 1284 | B126: 0
A127: 1285 | B127: 0
A128: 1287 | B128: 0
A129: 1292 | B129: 0
A130: =PE -> 1294 | B130: =IF(OR(AVERAGE(SUMIF(PE, $A130, YTD_Actual), SUMIF(PE, $A130, YTD_Budget), SUMIF(PE, $A130, YTD_Variance_Dollars)) > 1, AVERAGE(SUMIF(PE, $A130, YTD_Actual), SUMIF(PE, $A130, YTD_Budget), SUMIF(PE, $A130, YTD_Variance_Dollars)) < -1), MATCH($A130, PE_Exp_Report, 0) + 10, 0) -> 0
A131: 1298 | B131: 27 | C131: =IF(ISERROR($B131), $A131, "") -> 
A132: 1299 | B132: 28
A133: 1300 | B133: 105
A134: 1305 | B134: 0
A135: 1324 | B135: 0
A136: 1331 | B136: 0
A137: 1357 | B137: 0
A138: 1362 | B138: 0
A139: 1400 | B139: 106
A140: 1401 | B140: 0
A141: 1402 | B141: 0
A142: 1403 | B142: 107
A143: 1404 | B143: 0
A144: 1405 | B144: 0
A145: 1413 | B145: 0
A146: 1417 | B146: 0
A147: 1420 | B147: 0
A148: 1421 | B148: 108
A149: 1424 | B149: 0
A150: 1427 | B150: 0
A151: 1429 | B151: 0
A152: 1434 | B152: 0
A153: 1435 | B153: 0
A154: 1436 | B154: 0
A155: 1438 | B155: 0
A156: 1444 | B156: 0
A157: 1445 | B157: 0
A158: 1451 | B158: 0
A159: 1452 | B159: 0
A160: 1461 | B160: 0
A161: 1462 | B161: 0
A162: 1465 | B162: 112
A163: 1468 | B163: 0
A164: 1469 | B164: 0
A165: 1471 | B165: 0
A166: 1482 | B166: 0
A167: 1493 | B167: 0
A168: 1494 | B168: 0
A169: 1496 | B169: 114
A170: 1497 | B170: 0
A171: 1498 | B171: 0
A172: 1499 | B172: 0
A173: 1500 | B173: 115
A174: 1501 | B174: 0
A175: 1502 | B175: 0
A176: 1511 | B176: 0
A177: 1512 | B177: 0
A178: 1513 | B178: 0
A179: 1515 | B179: 116
A180: 1523 | B180: 0
A181: 1531 | B181: 0
A182: 1532 | B182: 117
A183: 1535 | B183: 0
A184: 1546 | B184: 0
A185: 1551 | B185: 31
A186: 1552 | B186: 0
A187: 1555 | B187: 33
A188: 1556 | B188: 0
A189: 1557 | B189: 0
A190: 1559 | B190: 0
A191: 1561 | B191: 0
A192: 1563 | B192: 0
A193: 1564 | B193: 119
A194: =PE -> 1567 | B194: =IF(OR(AVERAGE(SUMIF(PE, $A194, YTD_Actual), SUMIF(PE, $A194, YTD_Budget), SUMIF(PE, $A194, YTD_Variance_Dollars)) > 1, AVERAGE(SUMIF(PE, $A194, YTD_Actual), SUMIF(PE, $A194, YTD_Budget), SUMIF(PE, $A194, YTD_Variance_Dollars)) < -1), MATCH($A194, PE_Exp_Report, 0) + 10, 0) -> 0
A195: 1568 | B195: 121 | C195: =IF(ISERROR($B195), $A195, "") -> 
A196: 1569 | B196: 122
A197: 1570 | B197: 0
A198: 1572 | B198: 0
A199: 1576 | B199: 0
A200: 1581 | B200: 0
... 1800 more rows

Sheet SOFIA Query (hidden)
A1: PE | B1: Walker Description | C1: YTD Actual | D1: YTD Budget | E1: YTD Variance $ | F1: YTD Variance %
A2: 0090 | B2: PERDIDO LANDFILL GAS TO ENERGY PROJECT | C2: 1035.03 | D2: 0 | E2: 1035.03 | F2: 1
A3: 0091 | B3: PERDIDO LANDFILL GAS ENERGY | C3: 0 | D3: 60000 | E3: -60000 | F3: -1
A4: 1001 | B4: ECRC-CRIST-4-5 OPACITY REPLACEMENT | C4: 0 | D4: 0 | E4: 0 | F4: 0
A5: 1002 | B5: CRIST UNIT 5 TURBINE CONTROL REPLACEMENT | C5: 0 | D5: 0 | E5: 0 | F5: 0
A6: 1004 | B6: CRIST 6 AIR HEATER BASKETS | C6: 0 | D6: 0 | E6: 0 | F6: 0
A7: 1005 | B7: CRIST UNIT 4 TURBINE CONTROL REPLACEMENT | C7: 0 | D7: 0 | E7: 0 | F7: 0
A8: 1007 | B8: CRIST 7 HRA SIDEWALLS HEADER TO HEADER | C8: 0 | D8: 0 | E8: 0 | F8: 0
A9: 1009 | B9: CRIST 7 REHEATER | C9: 20959.32 | D9: 0 | E9: 20959.32 | F9: 1
A10: 1010 | B10: CRIST U6 PRIMARY SUPERHEATER REPLACEMENT | C10: 2245202.77 | D10: 1249992 | E10: 995210.77 | F10: 0.7961737115
A11: 1013 | B11: CRIST 6 HRA SIDEWALLS HEADER TO HEADER | C11: 3088216.67 | D11: 3450000 | E11: -361783.33 | F11: -0.1048647333
A12: 1015 | B12: CRIST 6 STATIC EXCITER AND VOLTAGE REGULATOR | C12: 1290455.81 | D12: 1099998 | E12: 190457.81 | F12: 0.1731437784
A13: 1017 | B13: CRIST 7 STATIC EXCITER AND VOLTAGE REGULATOR | C13: 410541.99 | D13: 0 | E13: 410541.99 | F13: 1
A14: 1019 | B14: CRIST 4 HP ROTOR & BLADES | C14: 0 | D14: 0 | E14: 0 | F14: 0
A15: 1024 | B15: CRIST 7 - 7A 4160 VAC VOLT BREAKERS 1 | C15: 0 | D15: 0 | E15: 0 | F15: 0
A16: 1026 | B16: CRIST 6 PRIMARY/SECONDARY ASH COLLECTOR REPLACEMENT | C16: 0 | D16: 0 | E16: 0 | F16: 0
A17: 1028 | B17: CRIST 7 PRIMARY/SECONDARY ASH COLLECTOR REPLACEMENT | C17: 0 | D17: 0 | E17: 0 | F17: 0
A18: 1031 | B18: ECRC AIR CRIST UNIT 7 SCR CATALYST REPLACEMENT | C18: 213075.4 | D18: 150000 | E18: 63075.4 | F18: 0.4205026667
A19: 1033 | B19: ENVIR-WASTE-CRIST FLY ASH LANDFILL STORAGE CELL CAPPING | C19: 0 | D19: 0 | E19: 0 | F19: 0
A20: 1034 | B20: CRIST U6 BREAKERS CABLE & SWITCHES PER ARC FLASH STUDY | C20: 0 | D20: 100000 | E20: -100000 | F20: -1
A21: 1038 | B21: ECRC-AIR-CRIST 6 UPGR PRECIP | C21: 840040.5 | D21: 150000 | E21: 690040.5 | F21: 4.60027
A22: 1039 | B22: CRIST 5 BOTTOM ASH DOGHOUSE AND SLUICE GATE | C22: 0 | D22: 0 | E22: 0 | F22: 0
A23: 1042 | B23: CRIST MODE 2&3 ASH SYSTEM REMOVAL EQUIPMENT | C23: 0 | D23: 0 | E23: 0 | F23: 0
A24: 1050 | B24: CRIST UNIT 4 FOSTER BOILER SAFETY RELIEF VALVE REPLACEMENT | C24: 0 | D24: 0 | E24: 0 | F24: 0
A25: 1051 | B25: CRIST UNIT 5 FOSTER BOILER SAFETY RELIEF VALVE REPLACEMENT | C25: 0 | D25: 0 | E25: 0 | F25: 0
A26: 1052 | B26: CRIST 6 - 6A 4160 VOLT BREAKERS | C26: 816737.73 | D26: 199998 | E26: 616739.73 | F26: 3.083729487
A27: 1053 | B27: CRIST 6 - 6B 4160 VOLT BREAKERS | C27: 310185.94 | D27: 187500 | E27: 122685.94 | F27: 0.6543250133
A28: 1054 | B28: CRIST REPLACEMENT OF UNIT 5 ECONOMIZER INLET HEADER | C28: 0 | D28: 0 | E28: 0 | F28: 0
A29: 1060 | B29: ECRC-AIR-CRIST 7 FGAS MONITORS | C29: 0 | D29: 45000 | E29: -45000 | F29: -1
A30: 1065 | B30: CRIST 7 CONDENSER CLEANING SYSTEM | C30: 0 | D30: 0 | E30: 0 | F30: 0
A31: 1066 | B31: CRIST 6 REHEAT SPRAY SYSTEM | C31: 255408.03 | D31: 250000 | E31: 5408.03 | F31: 0.02163212
A32: 1068 | B32: CRIST 7 RETIREMENT OF COOLING TOWER NON-ECRC | C32: 0 | D32: 0 | E32: 0 | F32: 0
A33: 1069 | B33: CRIST U6 #2 DEMINERALIZER | C33: 0 | D33: 0 | E33: 0 | F33: 0
A34: 1070 | B34: CRIST 6 & 7 REPLACE COOLING TOWER BUILDING | C34: 0 | D34: 0 | E34: 0 | F34: 0
A35: 1072 | B35: CRIST 4-7 NITROGEN CAPPING SYSTEM | C35: 0 | D35: 210200 | E35: -210200 | F35: -1
A36: 1076 | B36: CRIST UNIT 7 HYDROGEN COOLER | C36: 0 | D36: 0 | E36: 0 | F36: 0
A37: 1077 | B37: CRIST UNIT 6 TURBINE OIL COOLER | C37: 154529.91 | D37: 144942 | E37: 9587.91 | F37: 0.06614997723
A38: 1078 | B38: ENVIR-WATER-CRIST-CMN INTAKE SCREEN & CIRC WATER PUMP PIPING | C38: 0 | D38: 0 | E38: 0 | F38: 0
A39: 1081 | B39: CRIST HURRICANE SHELTERS | C39: 0 | D39: 0 | E39: 0 | F39: 0
A40: 1088 | B40: CRIST UNIT 6 FINISHING SUPERHEAT HEADER | C40: 0 | D40: 460000 | E40: -460000 | F40: -1
A41: 1090 | B41: CRIST 7 AIRHEATER SOOT BLOWERS | C41: 0 | D41: 0 | E41: 0 | F41: 0
A42: 1091 | B42: CRIST 7 AIR HEATER BASKETS | C42: 0 | D42: 0 | E42: 0 | F42: 0
A43: 1092 | B43: CRIST 7 REPLACE FINISHING SUPER HEAT OUTLET HEADER | C43: 0 | D43: 600000 | E43: -600000 | F43: -1
A44: 1093 | B44: CRIST 6 HYDROGEN COOLERS | C44: 0 | D44: 0 | E44: 0 | F44: 0
A45: 1094 | B45: CRIST FUEL HANDLING CRANE | C45: 4529334.15 | D45: 7327603 | E45: -2798268.85 | F45: -0.3818805208
A46: 1096 | B46: CRIST UNIT 6 SERVICE WATER COOLER REPLACEMENT | C46: 0 | D46: 0 | E46: 0 | F46: 0
A47: 1097 | B47: CRIST 6 - DIVISION WALL HEADER | C47: 0 | D47: 0 | E47: 0 | F47: 0
A48: 1100 | B48: CRIST-MINOR MISC ITEMS | C48: 383641.76 | D48: 249900 | E48: 133741.76 | F48: 0.5351811124
A49: 1104 | B49: CRIST 7 SUPERHEAT SPRAY NOZZLE HEADER | C49: 0 | D49: 0 | E49: 0 | F49: 0
A50: 1105 | B50: CRIST-#9 CONVEYOR STRUCTURAL METAL | C50: 0 | D50: 0 | E50: 0 | F50: 0
A51: 1110 | B51: CRIST-7 REHEAT OUTLET HEADER REPLACEMENT | C51: 2974.34 | D51: 0 | E51: 2974.34 | F51: 1
A52: 1111 | B52: CRIST-6 LOWER ECNONMIZER AND HEADER REPLACEMENT | C52: 1590463.62 | D52: 2450000 | E52: -859536.38 | F52: -0.3508311755
A53: 1114 | B53: CRIST 5-PULVERIZED COAL PIPING | C53: 45180.78 | D53: 749700 | E53: -704519.22 | F53: -0.9397348539
A54: 1116 | B54: CRIST-5 GENERATOR STATOR REWIND | C54: 0 | D54: 0 | E54: 0 | F54: 0
A55: 1121 | B55: CRIST 6 REHEAT HEADER | C55: 226240.95 | D55: 1100000 | E55: -873759.05 | F55: -0.7943264091
A56: 1122 | B56: CRIST BARGE HAUL SYSTEM | C56: 172608.32 | D56: 0 | E56: 172608.32 | F56: 1
A57: 1123 | B57: CRIST #7 CONDENSER EXPANSION JOINTS | C57: 0 | D57: 0 | E57: 0 | F57: 0
A58: 1125 | B58: CRIST #7C CONDENSATE PUMP MOTOR | C58: 0 | D58: 0 | E58: 0 | F58: 0
A59: 1126 | B59: CRIST 4 & 5 REPLACE INTAKE SCREENS | C59: 201395.14 | D59: 0 | E59: 201395.14 | F59: 1
A60: 1128 | B60: CRIST INTAKE SCREENS | C60: 0 | D60: 0 | E60: 0 | F60: 0
A61: 1131 | B61: CRIST #7 CIRCULATION WATER ISOLATION VALUES & EXPAN JOINTS | C61: 0 | D61: 0 | E61: 0 | F61: 0
A62: 1133 | B62: CRIST 6 FD FAN OUTLET POSITIONER REPLACEMENTS | C62: 18399.79 | D62: 137500 | E62: -119100.21 | F62: -0.8661833455
A63: 1134 | B63: CRIST 6 CONTROL UPGRADE | C63: 80986.28 | D63: 385000 | E63: -304013.72 | F63: -0.789646026
A64: 1135 | B64: CRIST 5 L-O TURBINE BLADE | C64: 0 | D64: 0 | E64: 0 | F64: 0
A65: 1136 | B65: CRIST 5-16,17 AND 18 STAGE TURBINE BLADE | C65: 0 | D65: 0 | E65: 0 | F65: 0
A66: 1137 | B66: CRIST 6 GRAPHICS UPGRADE | C66: 0 | D66: 330000 | E66: -330000 | F66: -1
A67: 1141 | B67: CRIST 7 MAIN TURBINE OIL COOLERS | C67: 206039.88 | D67: 0 | E67: 206039.88 | F67: 1
A68: 1144 | B68: CRIST 7 OVATION 400 CONTROLLERS REPLACEMENT | C68: 0 | D68: 0 | E68: 0 | F68: 0
A69: 1146 | B69: CRIST 7 BATTER BANK | C69: 196410.63 | D69: 250000 | E69: -53589.37 | F69: -0.21435748
A70: 1147 | B70: CRIST 4&5 BATTER BANK | C70: 53149.43 | D70: 0 | E70: 53149.43 | F70: 1
A71: 1148 | B71: CRIST - MISC ITEMS | C71: 1338799.73 | D71: 250008 | E71: 1088791.73 | F71: 4.355027559
A72: 1149 | B72: CRIST 4-7 ASH SYSTEM AIR COMPRESSOR | C72: 0 | D72: 0 | E72: 0 | F72: 0
A73: 1150 | B73: CRIST 6 - BATTERY BANK | C73: 318044.76 | D73: 250000 | E73: 68044.76 | F73: 0.27217904
A74: 1152 | B74: CRIST CONDENSATE MAKEUP PIPING | C74: 0 | D74: 0 | E74: 0 | F74: 0
A75: 1155 | B75: ECRC-WATER-CRIST-INSTALL RAW WATER WELL FLOWMETERS | C75: 0 | D75: 0 | E75: 0 | F75: 0
A76: 1158 | B76: ECRC-AIR-CRIST SCR U7 MISC | C76: 12600 | D76: 25002 | E76: -12402 | F76: -0.4960403168
A77: 1159 | B77: CRIST U7 REPL BREAKERS CABLE & SWITCHES PER ARC FLASH STUDY | C77: 329096.34 | D77: 87468 | E77: 241628.34 | F77: 2.76247702
A78: 1167 | B78: ECRC-AIR-CRIST SNCR MISCELLANEOUS | C78: 6018.24 | D78: 12498 | E78: -6479.76 | F78: -0.5184637542
A79: 1169 | B79: CRIST 6 REPLACE COLD END AIR HEATER BASKETS | C79: 0 | D79: 0 | E79: 0 | F79: 0
A80: 1172 | B80: CRIST U5 REPL BREAKERS CABLE & SWITHCES FOR ARC FLASH STUDY | C80: 0 | D80: 0 | E80: 0 | F80: 0
A81: 1173 | B81: CRIST 7 6A HIGH PRESSURE HEATER | C81: 0 | D81: 0 | E81: 0 | F81: 0
A82: 1175 | B82: ECRC AIR CRIST 4 PRECIPITATOR INTERNALS (PLATE WIRE SUPPORT) | C82: 0 | D82: 0 | E82: 0 | F82: 0
A83: 1177 | B83: CRIST U6 SW COOLER REPLACEMENT | C83: 0 | D83: 500000 | E83: -500000 | F83: -1
A84: 1178 | B84: ECRC-WATER-CRIST ECUA RECLAIM ACID ADD SYSTEM | C84: 0 | D84: 200000 | E84: -200000 | F84: -1
A85: 1191 | B85: ECRC-AIR CRIST 5 PRECIPITATOR INTERNALS (PLATE WIRE SUPPORT) | C85: 0 | D85: 0 | E85: 0 | F85: 0
A86: 1196 | B86: CRIST 6 REHEAT AND SUPERHEAT DAMPERS | C86: 697559.8 | D86: 415800 | E86: 281759.8 | F86: 0.6776329966
A87: 1199 | B87: ECRC-AIR-CRIST 7 ELECTROSTATIC PRECIP (ESP) REPLACMNT | C87: 0 | D87: 0 | E87: 0 | F87: 0
A88: 1200 | B88: CRIST 6&7 IGNITER AIR SYSTEM | C88: 0 | D88: 0 | E88: 0 | F88: 0
A89: 1201 | B89: CRIST TRACTOR TO REPLACE D1ON | C89: 0 | D89: 0 | E89: 0 | F89: 0
A90: 1202 | B90: CRIST 6 ASH SYSTEM 600 VAC MCC | C90: 0 | D90: 0 | E90: 0 | F90: 0
A91: 1203 | B91: CRIST UNIT 7 ASH SYSTEM 600 VAC M | C91: 0 | D91: 0 | E91: 0 | F91: 0
A92: 1204 | B92: ECRC CRIST 6 REPLACE CONDENSER TUBES | C92: 0 | D92: 0 | E92: 0 | F92: 0
A93: 1209 | B93: CRIST ASH SYSTEM AIR COMPRESSORS | C93: 80963.36 | D93: 135000 | E93: -54036.64 | F93: -0.4002714074
A94: 1210 | B94: CRIST CYBER SECURITY | C94: 3501.31 | D94: 199920 | E94: -196418.69 | F94: -0.9824864446
A95: 1211 | B95: ECRC-WATER-CRIST ASH POND MONITORING WELLS | C95: 0 | D95: 0 | E95: 0 | F95: 0
A96: 1221 | B96: CRIST REPLACE HYDROMIXERS | C96: 420097.96 | D96: 1000000 | E96: -579902.04 | F96: -0.57990204
A97: 1222 | B97: ECRC-AIR-CRIST SCRUBBER | C97: 7358450.71 | D97: 7769141 | E97: -410690.29 | F97: -0.05286173722
A98: 1227 | B98: ECRC-CRIST WATER CONSERVATION PROJECT | C98: 0 | D98: 0 | E98: 0 | F98: 0
A99: 1230 | B99: CRIST 6 REPL REHEATER | C99: 4748157.16 | D99: 1732500 | E99: 3015657.16 | F99: 1.740639053
A100: 1231 | B100: CRIST 6&7 BOILER AWARE PROGRAM | C100: 0 | D100: 80000 | E100: -80000 | F100: -1
A101: 1233 | B101: ECRC-AIR-CRIST SCRUBBER MISCELLANEOUS | C101: 125753.63 | D101: 75000 | E101: 50753.63 | F101: 0.6767150667
A102: 1235 | B102: CRIST SECURITY MAIN BLDG | C102: 0 | D102: 0 | E102: 0 | F102: 0
A103: 1237 | B103: ENVIR-CRIST-REPLACE PLANT SCADA SYSTEM | C103: 0 | D103: 0 | E103: 0 | F103: 0
A104: 1238 | B104: ENVIR-CRIST-REPLACE PLANT LDMS SYSTEM | C104: 0 | D104: 0 | E104: 0 | F104: 0
A105: 1244 | B105: ECRC-AIR-CRIST RATA CEM TEST TRAILER | C105: 0 | D105: 0 | E105: 0 | F105: 0
A106: 1247 | B106: ECRC-AIR-CRIST 4&5 BYPASS STACK CEMS EQUIPMENT | C106: -391049.08 | D106: 0 | E106: -391049.08 | F106: 1
A107: 1249 | B107: ECRC CRIST 6 PRECIP VOLTAGE CONTROL | C107: 0 | D107: 0 | E107: 0 | F107: 0
A108: 1250 | B108: ECRC AIR CRIST 7 SCR ASH PIPING& VIBRATORS | C108: 0 | D108: 0 | E108: 0 | F108: 0
A109: 1251 | B109: ENVIR - WASTE - CRIST COMMON INTERIM LANDFILL II | C109: 0 | D109: 0 | E109: 0 | F109: 0
A110: 1253 | B110: ENVIR-WASTE-CRIST FLY ASH LANDFILL STORAGE CELL DEVEL | C110: 0 | D110: 0 | E110: 0 | F110: 0
A111: 1254 | B111: CRIST COMMON CONVEYOR BELTS REPLACEMENT | C111: 137760.76 | D111: 0 | E111: 137760.76 | F111: 1
A112: 1256 | B112: ECRC - AIR - CRIST 6&7 BY PASS STACK CEMS EQUIPMENT | C112: 453664.73 | D112: 0 | E112: 453664.73 | F112: 1
A113: 1257 | B113: CRIST 4-7 DEMINERALIZER NEUTRALIZATION BASIN PUMPS | C113: 0 | D113: 0 | E113: 0 | F113: 0
A114: 1258 | B114: CRIST 4-7 DEMINERALIZER CONTROLS REPLACEMENT | C114: 102350.52 | D114: 0 | E114: 102350.52 | F114: 1
A115: 1259 | B115: CRIST UNITS 6&7 SIMULATOR AND ENGINEERING WORKSTATION | C115: 0 | D115: 0 | E115: 0 | F115: 0
A116: 1262 | B116: CRIST UNIT 6 HOT REHEAT PIPING | C116: 19526.84 | D116: 1000002 | E116: -980475.16 | F116: -0.9804731991
A117: 1266 | B117: CRIST 4-7 NEW SIDE COAL YARD 4160 VOLT BREAKERS | C117: 0 | D117: 0 | E117: 0 | F117: 0
A118: 1267 | B118: CRIST 4-7 NEW SIDE COAL YARD 575 VOLT BREAKERS | C118: 122223.85 | D118: 0 | E118: 122223.85 | F118: 1
A119: 1272 | B119: ECRC - CRIST - SWITCHYARD SPCC PROJECT | C119: 0 | D119: 0 | E119: 0 | F119: 0
A120: 1276 | B120: ENVIR-WASTE-CRIST ASH POND DISCHARGE WEIR REPLACEMENT | C120: 243096.63 | D120: 0 | E120: 243096.63 | F120: 1
A121: 1278 | B121: CRIST UNITS 6-7 ELEVATOR REPLACEMENT | C121: 0 | D121: 0 | E121: 0 | F121: 0
A122: 1279 | B122: ECRC-AIR-CRIST 6 SCR | C122: 49686940.44 | D122: 45106612 | E122: 4580328.44 | F122: 0.1015445017
A123: 1280 | B123: ECRC-WATER-CRIST COMMON SURFACE WATER SAMPLING BOAT | C123: 0 | D123: 0 | E123: 0 | F123: 0
A124: 1281 | B124: CRIST 4-7 ENGINE GENERATOR | C124: 0 | D124: 0 | E124: 0 | F124: 0
A125: 1283 | B125: ECRC-AIR-CRIST 4-7 CEMS SYSTEM FOR SCRUBBERS | C125: 0 | D125: 0 | E125: 0 | F125: 0
A126: 1284 | B126: ECRC-AIR-CRIST 7GAS CANE COOLING FANS | C126: 0 | D126: 0 | E126: 0 | F126: 0
A127: 1285 | B127: CRIST ROLLING DOORS AND DIESEL SUMP PUMPS | C127: 0 | D127: 0 | E127: 0 | F127: 0
A128: 1287 | B128: ECRC-AIR-CRIST 4-5-6 NOX REDUCTION EQUIPMENT | C128: 0.08 | D128: 0 | E128: 0.08 | F128: 1
A129: 1292 | B129: CRIST COAL CONVEYOR FIRE SYSTEM | C129: 0 | D129: 0 | E129: 0 | F129: 0
A130: 1294 | B130: CRIST COMMON PURCHASE OF D-10 TRACK DOZIER | C130: 0 | D130: 0 | E130: 0 | F130: 0
A131: 1298 | B131: ECRC - CRIST WATER CONSERVATION PROGRAM | C131: 345746.29 | D131: 440000 | E131: -94253.71 | F131: -0.2142129773
A132: 1299 | B132: ECRC-WATER-CRIST 4-7 ASH POND CHEMISTRY CONTROL | C132: 604.4 | D132: 0 | E132: 604.4 | F132: 1
A133: 1300 | B133: SCHOLZ - MISC. STEAM PLANT ADDITIONS | C133: 48051.72 | D133: 60000 | E133: -11948.28 | F133: -0.199138
A134: 1305 | B134: ECRC-AIR SCHOLZ 2 PRECIP PLATES & WIRES | C134: 0 | D134: 0 | E134: 0 | F134: 0
A135: 1324 | B135: ECRC-AIR-REPLACE SCHOLZ UNIT 1 CEMS FLOW MONITORS | C135: 0 | D135: 0 | E135: 0 | F135: 0
A136: 1331 | B136: SCHOLZ 2 REPLACE #4 FEED WATER HEATER TUBE BUNDLE | C136: 0 | D136: 0 | E136: 0 | F136: 0
A137: 1357 | B137: ECRC-AIR-SCHOLZ 1 & 2 CEMS REPLACEMENT | C137: 0 | D137: 0 | E137: 0 | F137: 0
A138: 1362 | B138: ECRC-AIR-SCHOLZ MERCURY MONITORING | C138: 0 | D138: 0 | E138: 0 | F138: 0
A139: 1400 | B139: SMITH 1&2 - MISC. STEAM PLANT ADDITIONS | C139: 123177.77 | D139: 212418 | E139: -89240.23 | F139: -0.4201161389
A140: 1401 | B140: SMITH REPLOACE CONTROL ROOM ROOF | C140: 0 | D140: 0 | E140: 0 | F140: 0
A141: 1402 | B141: SMITH REPLACE PLANT ADMIN ROOF | C141: 0 | D141: 0 | E141: 0 | F141: 0
A142: 1403 | B142: SMITH 3 - 3A & 3B GAS TURBINES AIR FILTRATION SYSTEM | C142: 52576.47 | D142: 0 | E142: 52576.47 | F142: 1
A143: 1404 | B143: ECRC-SMITH-WATER-SPCC UPGRADE | C143: 0 | D143: 0 | E143: 0 | F143: 0
A144: 1405 | B144: SMITH UNIT 1-NON ECRC COST OF REMOVAL ON SNCR UNIT 1 PROJECT | C144: 0 | D144: 0 | E144: 0 | F144: 0
A145: 1413 | B145: SMITH UNIT 1 & 2 EXPANSION JOINT REPLACEMENTS | C145: 0 | D145: 0 | E145: 0 | F145: 0
A146: 1417 | B146: SMITH UNIT#2 REPLACE HORIZONTAL SUPERHEATER | C146: 0 | D146: 0 | E146: 0 | F146: 0
A147: 1420 | B147: SMITH 1 DCS UPGRADE AND CONTROL ROOM MODIFICATIONS | C147: 0 | D147: 0 | E147: 0 | F147: 0
A148: 1421 | B148: SMITH - UNIT A COMBUSTION TURBINE CONTROLS REPLACEMENT | C148: 1881592.34 | D148: 0 | E148: 1881592.34 | F148: 1
A149: 1424 | B149: SMITH 3 - TURBINE CONTROLS REPLACEMENT | C149: 0 | D149: 1500000 | E149: -1500000 | F149: -1
A150: 1427 | B150: SMITH 1 - VACUUM PUMPS | C150: 0 | D150: 250000 | E150: -250000 | F150: -1
A151: 1429 | B151: SMITH UNIT #1 REPLACE HORIZONAL SUPERHEATER | C151: 0 | D151: 0 | E151: 0 | F151: 0
A152: 1434 | B152: SMITH 1 - FLY ASH AND SOOTBLOWER CONTROLS | C152: 0 | D152: 200000 | E152: -200000 | F152: -1
A153: 1435 | B153: SMITH UNIT #2 REPLACE HP TURBINE BLADES | C153: 0 | D153: 0 | E153: 0 | F153: 0
A154: 1436 | B154: SMITH UNIT #1 REPLACE HP TURBINE BLADES | C154: 0 | D154: 0 | E154: 0 | F154: 0
A155: 1438 | B155: SMITH 3 - LTSA | C155: 0 | D155: 0 | E155: 0 | F155: 0
A156: 1444 | B156: ECRC-AIR-SMITH 1 & 2 CEMS FLOW SYSTEM REPLACEMENT | C156: 0 | D156: 0 | E156: 0 | F156: 0
A157: 1445 | B157: ECRC-AIR-SMITH 1 & 2 CEMS GAS MONITORS REPLACEMENT | C157: 0 | D157: 0 | E157: 0 | F157: 0
A158: 1451 | B158: REPLACE SMITH UNIT #1 HOT REHEAT PIPING | C158: 0 | D158: 0 | E158: 0 | F158: 0
A159: 1452 | B159: SMITH UNIT 2-REPLACE HOT REHEAT PIPING | C159: 0 | D159: 0 | E159: 0 | F159: 0
A160: 1461 | B160: ECRC-SMITH UNIT 1 PRECIPITATOR AIR UPGRADE | C160: 0 | D160: 0 | E160: 0 | F160: 0
A161: 1462 | B161: ECRC - AIR - SMITH UNIT 2 PRECIPITATOR UPGRADE | C161: 0 | D161: 0 | E161: 0 | F161: 0
A162: 1465 | B162: SMITH 2 - REPLACE DUCTWORK/EXPANSION JOINTS | C162: 351.26 | D162: 0 | E162: 351.26 | F162: 1
A163: 1468 | B163: ECRC-AIR-SMITH 1 SNCR | C163: 0 | D163: 0 | E163: 0 | F163: 0
A164: 1469 | B164: ECRC-AIR-SMITH 2 SNCR | C164: 0 | D164: 0 | E164: 0 | F164: 0
A165: 1471 | B165: SMITH 1 - REPLACE RETRACTS ON BOILERS | C165: 0 | D165: 350000 | E165: -350000 | F165: -1
A166: 1482 | B166: SMITH 1 REPL LP FEEDWATER HEATER | C166: 0 | D166: 0 | E166: 0 | F166: 0
A167: 1493 | B167: SMITH REPLACE CONDENSER PEDESTALS | C167: 0 | D167: 0 | E167: 0 | F167: 0
A168: 1494 | B168: SMITH - AIR COMPRESSOR REPLACEMENT | C168: 0 | D168: 0 | E168: 0 | F168: 0
A169: 1496 | B169: SMITH 2 - EXPANSION JOINT REPLACEMENT | C169: 192836.92 | D169: 0 | E169: 192836.92 | F169: 1
A170: 1497 | B170: SMITH - REPLACE WALL BLOWERS | C170: 0 | D170: 0 | E170: 0 | F170: 0
A171: 1498 | B171: SMITH 1 & 2 - SAFETY VALVE REPLACEMENT | C171: 0 | D171: 0 | E171: 0 | F171: 0
A172: 1499 | B172: SMITH 3 OVATION CONTROL SYSTEM UPGRADE | C172: 0 | D172: 0 | E172: 0 | F172: 0
A173: 1500 | B173: DANIEL-MISC. STEAM PLANT ADDITIONS & IMP. | C173: 77613.02 | D173: 111907 | E173: -34293.98 | F173: -0.3064507135
A174: 1501 | B174: ECRC-DANIEL ASH POND WELL | C174: 0 | D174: 36107 | E174: -36107 | F174: -1
A175: 1502 | B175: ECRC DANIEL SCRUBBER COMMON | C175: 0 | D175: 1375301 | E175: -1375301 | F175: -1
A176: 1511 | B176: DANIEL 1 ACE TWIP C05254 MS PE 2155 | C176: 0 | D176: 0 | E176: 0 | F176: 0
A177: 1512 | B177: ECRC -AIR-DANIEL 1 ECO MERCURY MONITOR 2120 | C177: 0 | D177: 0 | E177: 0 | F177: 0
A178: 1513 | B178: ECRC AIR DANIEL 2 ECO MERCURY MONITOR 2121 | C178: 0 | D178: 0 | E178: 0 | F178: 0
A179: 1515 | B179: DANIEL 2 ACE TWIP C05348 MS PE 2185 | C179: 458711.75 | D179: 100286 | E179: 358425.75 | F179: 3.574035758
A180: 1523 | B180: DANIEL WATER TREATMENT PLANT | C180: 0 | D180: 0 | E180: 0 | F180: 0
A181: 1531 | B181: DANIEL 1 HP/IP TURBINE UPGRADE | C181: 0 | D181: 0 | E181: 0 | F181: 0
A182: 1532 | B182: DANIEL 2 HP/IP TURBINE UPGRADE | C182: 5369263.92 | D182: 2613072 | E182: 2756191.92 | F182: 1.054770753
A183: 1535 | B183: DANIEL 1 WESTINGHOUSE WDPF CONTROLS SYSTEM | C183: 0 | D183: 0 | E183: 0 | F183: 0
A184: 1546 | B184: DANIEL 1 HYDROGEN COOLER TUBING | C184: 0 | D184: 0 | E184: 0 | F184: 0
A185: 1551 | B185: ECRC-AIR-DANIEL 1 & 2 SCRUBBER | C185: 12459476.15 | D185: 10485251 | E185: 1974225.15 | F185: 0.1882859218
A186: 1552 | B186: ECRC-AIR-DANIEL 2 SCRUBBER | C186: 0 | D186: 10473721 | E186: -10473721 | F186: -1
A187: 1555 | B187: ECRC - WASTE - DANIEL ASH STORAGE | C187: 11569.68 | D187: 0 | E187: 11569.68 | F187: 1
A188: 1556 | B188: DANIEL 1 SUPERHEATER | C188: 0 | D188: 0 | E188: 0 | F188: 0
A189: 1557 | B189: DANIEL 1&2 CONVEYOR BELT 1D C01719 | C189: 0 | D189: 18792 | E189: -18792 | F189: -1
A190: 1559 | B190: DANIEL 1 MILL PIPING UNITS | C190: 0 | D190: 0 | E190: 0 | F190: 0
A191: 1561 | B191: DANIEL 1 PRECI ASH VALVE & TRUNK LINE | C191: 0 | D191: 0 | E191: 0 | F191: 0
A192: 1563 | B192: DANIEL 2 SUPERHEATER | C192: 0 | D192: 0 | E192: 0 | F192: 0
A193: 1564 | B193: DANIEL 2 CAPITAL VALVE REPLACEMENTS C03256 | C193: 34489.01 | D193: 24801 | E193: 9688.01 | F193: 0.3906298133
A194: 1567 | B194: DANIEL 1&2 CONTROL ROOM A/C SYSTEMS | C194: 0 | D194: 100349 | E194: -100349 | F194: -1
A195: 1568 | B195: DANIEL 1 HOT AIR HEATER BASKET | C195: 298.51 | D195: 0 | E195: 298.51 | F195: 1
A196: 1569 | B196: DANIEL 2 HOT AIR HEATER BASKET | C196: 403142.62 | D196: 376315 | E196: 26827.62 | F196: 0.07129032858
A197: 1570 | B197: ECRC AIR DANIEL CEMS GAS ANALYZERS | C197: 0 | D197: 0 | E197: 0 | F197: 0
A198: 1572 | B198: DANIEL 1&2 FIRE PROTECTION CONTROLS | C198: 0 | D198: 37500 | E198: -37500 | F198: -1
A199: 1576 | B199: DANIEL 2 CONDENSER TUBES | C199: 0 | D199: 0 | E199: 0 | F199: 0
A200: 1581 | B200: DANIEL !&2 CONVEYOR DIRECT DRIVE GEARBOXES C07627 | C200: 0 | D200: 110429 | E200: -110429 | F200: -1
... 370 more rows

Sheet June 2011
A1: 6
C2: Place an X in the box when your data is verified:
D3: Vicki Mack | F3: Allison Bryant | I3: Sarah Seckinger
D4: Hal Banks | F4: Carol Stevens
D5: Paul Pratofiorito | F5: Debbie Deatherage
D6: Allison Beaty | F6: Barbara Gambill
A9: Business | K9: YTD | L9: Year-End | N9: Year-End | O9: Year-End
A10: Unit | C10: PE | D10: Walker Description | E10: Coor. | F10: YTD Actual | G10: YTD Budget | H10: YTD Variance $ | I10: YTD Variance % | J10: * | K10: Explanation | L10: Projected | M10: Original Budget | N10: Variance | O10: Variance % | P10: **
A12: POWER GENERATION
B13: ENVIRONMENTAL
C14: 1031 | D14: =VLOOKUP($C14, Walker_Description, 2, FALSE) -> ECRC AIR CRIST UNIT 7 SCR CATALYST REPLACEMENT | E14: VICKI | F14: =SUMIF(PE, $C14, YTD_Actual) -> 213075.4 | G14: =SUMIF(PE, $C14, YTD_Budget) -> 150000 | H14: =SUMIF(PE, $C14, YTD_Variance_Dollars) -> 63075.4 | I14: =SUMIF(PE, $C14, YTD_Variance_Percentage) -> 0.4205026667 | J14: =IF(AND(OR($A$1=3,$A$1=6,$A$1=9,$A$1=12),OR(H14<-250000,H14>250000,I14<-0.1,I14>0.1),(OR(H14>=10000,H14<=-10000))),"*",IF(AND(OR($A$1=1,$A$1=2,$A$1=4,$A$1=5,$A$1=7,$A$1=8,$A$1=10,$A$1=11),OR(H14<=-250000,H14>=250000),(OR(H14>=10000,H14<=-10000))),"*","")) -> * | M14: 150000 | N14: =L14-M14 -> -150000 | O14: =IF(M14=0,IF(L14>0,100,IF(L14=0,0,-100)),(N14/M14)*100) -> -100
C15: 1033 | D15: ENVIR-WASTE-CRIST FLY ASH LANDFILL STORAGE CELL CAPPING | E15: VICKI | F15: 0 | G15: 0 | H15: 0 | I15: 0 | M15: 350000 | N15: =L15-M15 -> -350000 | O15: =IF(M15=0,IF(L15>0,100,IF(L15=0,0,-100)),(N15/M15)*100) -> -100
C16: 1038 | D16: ECRC-AIR-CRIST 6 UPGR PRECIP | E16: VICKI | F16: 840040.5 | G16: 150000 | H16: 690040.5 | I16: 4.60027 | J16: =IF(AND(OR($A$1=3,$A$1=6,$A$1=9,$A$1=12),OR(H16<-250000,H16>250000,I16<-0.1,I16>0.1),(OR(H16>=10000,H16<=-10000))),"*",IF(AND(OR($A$1=1,$A$1=2,$A$1=4,$A$1=5,$A$1=7,$A$1=8,$A$1=10,$A$1=11),OR(H16<=-250000,H16>=250000),(OR(H16>=10000,H16<=-10000))),"*","")) -> * | M16: 13250000 | N16: -13250000 | O16: -100 | P16: =IF(OR(N16>999999,N16<-999999),"**","") -> **
C17: 1060 | D17: ECRC-AIR-CRIST 7 FGAS MONITORS | E17: VICKI | F17: 0 | G17: 45000 | H17: -45000 | I17: -1 | J17: * | M17: 45000 | N17: -45000 | O17: -100
C18: 1158 | D18: ECRC-AIR-CRIST SCR U7 MISC | E18: VICKI | F18: 12600 | G18: 25002 | H18: -12402 | I18: -0.4960403168 | J18: * | M18: 50000 | N18: -50000 | O18: -100
C19: 1167 | D19: ECRC-AIR-CRIST SNCR MISCELLANEOUS | E19: VICKI | F19: 6018.24 | G19: 12498 | H19: -6479.76 | I19: -0.5184637542 | M19: 25000 | N19: -25000 | O19: -100
C20: 1178 | D20: ECRC-WATER-CRIST ECUA RECLAIM ACID ADD SYSTEM | E20: VICKI | F20: 0 | G20: 200000 | H20: -200000 | I20: -1 | J20: * | M20: 500000 | N20: -500000 | O20: -100
C21: 1222 | D21: ECRC-AIR-CRIST SCRUBBER | E21: VICKI | F21: 7358450.71 | G21: 7769141 | H21: -410690.29 | I21: -0.05286173722 | M21: 15153624 | N21: =L21-M21 -> -15153624 | O21: =IF(M21=0,IF(L21>0,100,IF(L21=0,0,-100)),(N21/M21)*100) -> -100
C22: 1233 | D22: ECRC-AIR-CRIST SCRUBBER MISCELLANEOUS | E22: VICKI | F22: 125753.63 | G22: 75000 | H22: 50753.63 | I22: 0.6767150667 | J22: * | M22: 150000 | N22: =L22-M22 -> -150000 | O22: =IF(M22=0,IF(L22>0,100,IF(L22=0,0,-100)),(N22/M22)*100) -> -100
C23: 1247 | D23: ECRC-AIR-CRIST 4&5 BYPASS STACK CEMS EQUIPMENT | E23: VICKI | F23: -391049.08 | G23: 0 | H23: -391049.08 | I23: 1 | J23: * | M23: 0 | N23: =L23-M23 -> 0 | O23: =IF(M23=0,IF(L23>0,100,IF(L23=0,0,-100)),(N23/M23)*100) -> 0
C24: 1256 | D24: ECRC - AIR - CRIST 6&7 BY PASS STACK CEMS EQUIPMENT | E24: VICKI | F24: 453664.73 | G24: 0 | H24: 453664.73 | I24: 1 | J24: * | M24: 0 | N24: =L24-M24 -> 0 | O24: =IF(M24=0,IF(L24>0,100,IF(L24=0,0,-100)),(N24/M24)*100) -> 0
C25: 1276 | D25: ENVIR-WASTE-CRIST ASH POND DISCHARGE WEIR REPLACEMENT | E25: VICKI | F25: 243096.63 | G25: 0 | H25: 243096.63 | I25: 1 | J25: * | M25: 0 | N25: 0 | O25: 0 | P25: =IF(OR(N25>999999,N25<-999999),"**","") -> 
C26: 1279 | D26: ECRC-AIR-CRIST 6 SCR | E26: VICKI | F26: 49686940.44 | G26: 45106612 | H26: 4580328.44 | I26: 0.1015445017 | J26: * | M26: 81940189 | N26: -81940189 | O26: -100 | P26: =IF(OR(N26>999999,N26<-999999),"**","") -> **
C27: 1298 | D27: ECRC - CRIST WATER CONSERVATION PROGRAM | E27: VICKI | F27: 345746.29 | G27: 440000 | H27: -94253.71 | I27: -0.2142129773 | J27: * | M27: 700000 | N27: -700000 | O27: -100
C28: 1299 | D28: ECRC-WATER-CRIST 4-7 ASH POND CHEMISTRY CONTROL | E28: VICKI | F28: 604.4 | G28: 0 | H28: 604.4 | I28: 1 | M28: 0 | N28: 0 | O28: 0 | P28: =IF(OR(N28>999999,N28<-999999),"**","") -> 
C29: 1501 | D29: ECRC-DANIEL ASH POND WELL | E29: VICKI | F29: 0 | G29: 36107 | H29: -36107 | I29: -1 | J29: * | M29: 72195 | N29: -72195 | O29: -100
C30: 1502 | D30: ECRC DANIEL SCRUBBER COMMON | E30: VICKI | F30: 0 | G30: 1375301 | H30: -1375301 | I30: -1 | J30: * | M30: 7036456 | N30: -7036456 | O30: -100
C31: 1551 | D31: ECRC-AIR-DANIEL 1 & 2 SCRUBBER | E31: VICKI | F31: 12459476.15 | G31: 10485251 | H31: 1974225.15 | I31: 0.1882859218 | J31: * | M31: 20042892 | N31: =L31-M31 -> -20042892 | O31: =IF(M31=0,IF(L31>0,100,IF(L31=0,0,-100)),(N31/M31)*100) -> -100
C32: 1552 | D32: ECRC-AIR-DANIEL 2 SCRUBBER | E32: VICKI | F32: 0 | G32: 10473721 | H32: -10473721 | I32: -1 | J32: * | M32: 20100432 | N32: =L32-M32 -> -20100432 | O32: =IF(M32=0,IF(L32>0,100,IF(L32=0,0,-100)),(N32/M32)*100) -> -100
C33: 1555 | D33: ECRC - WASTE - DANIEL ASH STORAGE | E33: VICKI | F33: 11569.68 | G33: 0 | H33: 11569.68 | I33: 1 | J33: * | M33: 0 | N33: 0 | O33: 0
C34: 1592 | D34: ECRC-AIR-DANIEL 1 & 2 CEMS BACKUP AIR COMPRESSOR | E34: VICKI | F34: 3092.53 | G34: 0 | H34: 3092.53 | I34: 1 | J34: =IF(AND(OR($A$1=3,$A$1=6,$A$1=9,$A$1=12),OR(H34<-250000,H34>250000,I34<-0.1,I34>0.1),(OR(H34>=10000,H34<=-10000))),"*",IF(AND(OR($A$1=1,$A$1=2,$A$1=4,$A$1=5,$A$1=7,$A$1=8,$A$1=10,$A$1=11),OR(H34<=-250000,H34>=250000),(OR(H34>=10000,H34<=-10000))),"*","")) ->  | M34: 0 | N34: =L34-M34 -> 0 | O34: =IF(M34=0,IF(L34>0,100,IF(L34=0,0,-100)),(N34/M34)*100) -> 0
C35: 1601 | D35: ECRC-WATER-SMITH RECLAIMED WATER PROJECT UNIT 3 | E35: VICKI | F35: 0 | G35: 2514286 | H35: -2514286 | I35: -1 | J35: * | M35: 6000000 | N35: =L35-M35 -> -6000000 | O35: -100
C36: 1613 | D36: ENVIRONMENTAL-WASTE-SMITH CAP ASH LANDFILL CELLS | E36: VICKI | F36: 209609.86 | G36: 0 | H36: 209609.86 | I36: 1 | J36: * | M36: 200000 | N36: =L36-M36 -> -200000 | O36: -100
C37: 1640 | D37: ENVIRONMENTAL-AIR-SMITH 3 CEMS REPLACEMENT | E37: VICKI | F37: 13736.68 | G37: 0 | H37: 13736.68 | I37: 1 | J37: =IF(AND(OR($A$1=3,$A$1=6,$A$1=9,$A$1=12),OR(H37<-250000,H37>250000,I37<-0.1,I37>0.1),(OR(H37>=10000,H37<=-10000))),"*",IF(AND(OR($A$1=1,$A$1=2,$A$1=4,$A$1=5,$A$1=7,$A$1=8,$A$1=10,$A$1=11),OR(H37<=-250000,H37>=250000),(OR(H37>=10000,H37<=-10000))),"*","")) -> * | M37: 200000 | N37: =L37-M37 -> -200000 | O37: =IF(M37=0,IF(L37>0,100,IF(L37=0,0,-100)),(N37/M37)*100) -> -100
C38: 1727 | D38: ENVIR-AIR-SCHERER SELECTIVE CATALYTIC REDUCT (SCR) | E38: VICKI | F38: 1333406.73 | G38: 2618619 | H38: -1285212.27 | I38: -0.4907977335 | J38: * | M38: 3051935 | N38: -3051935 | O38: -100 | P38: =IF(OR(N38>999999,N38<-999999),"**","") -> **
C39: 1728 | D39: ENVIR-AIR-SCHERER SCRUBBER | E39: VICKI | F39: 4113305.28 | G39: 3794918 | H39: 318387.28 | I39: 0.08389832929 | J39: * | M39: 5729800 | N39: -5729800 | O39: -100
C40: 1729 | D40: ENVIR-AIR-SCHERER BAGHOUSE | E40: VICKI | F40: 134778.83 | G40: 466349 | H40: -331570.17 | I40: -0.7109914892 | J40: * | M40: 475062 | N40: -475062 | O40: -100
C41: 1765 | D41: ENVIRONMENTAL SCHERER 3 INSTALL O2/CO ANALYZERS | E41: VICKI | F41: 0 | G41: 81500 | H41: -81500 | I41: -1 | J41: * | M41: 81500 | N41: -81500 | O41: =IF(M40=0,IF(L41>0,100,IF(L41=0,0,-100)),(N41/M40)*100) -> -17.15565547 | P41: =IF(OR(N41>999999,N41<-999999),"**","") -> 
C42: 1778 | D42: ENVIR - SCHERER - ENVIRONMENTAL SITE PLAN | E42: VICKI | F42: 432875.69 | G42: 468920 | H42: -36044.31 | I42: -0.07686665103 | M42: 747496 | N42: -747496 | O42: =IF(M42=0,IF(L42>0,100,IF(L42=0,0,-100)),(N42/M42)*100) -> -100 | P42: =IF(OR(N42>999999,N42<-999999),"**","") -> 
C43: 1824 | D43: ECRC-AIR-DANIEL 1 LO NOX BURNERS | E43: VICKI | F43: 516.64 | G43: 0 | H43: 516.64 | I43: 1 | M43: 0 | N43: 0 | O43: =IF(M41=0,IF(L43>0,100,IF(L43=0,0,-100)),(N43/M41)*100) -> 0 | P43: =IF(OR(N43>999999,N43<-999999),"**","") -> 
C44: 1847 | D44: ECRC DANIEL SCRUBBER LAND | E44: VICKI | F44: 3315.26 | G44: 0 | H44: 3315.26 | I44: 1 | J44: =IF(AND(OR($A$1=3,$A$1=6,$A$1=9,$A$1=12),OR(H44<-250000,H44>250000,I44<-0.1,I44>0.1),(OR(H44>=10000,H44<=-10000))),"*",IF(AND(OR($A$1=1,$A$1=2,$A$1=4,$A$1=5,$A$1=7,$A$1=8,$A$1=10,$A$1=11),OR(H44<=-250000,H44>=250000),(OR(H44>=10000,H44<=-10000))),"*","")) ->  | M44: 0 | N44: =L44-M44 -> 0 | O44: =IF(M42=0,IF(L44>0,100,IF(L44=0,0,-100)),(N44/M42)*100) -> 0 | P44: =IF(OR(N44>999999,N44<-999999),"**","") -> 
B46: TOTAL ENVIRONMENTAL | C46: Remove | D46: =$B46 -> TOTAL ENVIRONMENTAL | F46: =SUM(F14:F45) -> 77610625.22 | G46: =SUM(G14:G45) -> 86288225 | H46: =SUM(H14:H45) -> -8677599.78 | I46: =IF(G46=0,1,+H46/G46) -> -0.1005652832 | L46: =SUM(L14:L45) -> 0 | M46: 176126581 | N46: =+L46-M46 -> -176126581 | O46: =(N46/M46)*100 -> -100
B48: FOSSIL
C49: 1007 | D49: =VLOOKUP($C49, Walker_Description, 2, FALSE) -> CRIST 7 HRA SIDEWALLS HEADER TO HEADER | E49: VICKI | F49: =SUMIF(PE, $C49, YTD_Actual) -> 0 | G49: =SUMIF(PE, $C49, YTD_Budget) -> 0 | H49: =SUMIF(PE, $C49, YTD_Variance_Dollars) -> 0 | I49: =SUMIF(PE, $C49, YTD_Variance_Percentage) -> 0 | J49: =IF(AND(OR($A$1=3,$A$1=6,$A$1=9,$A$1=12),OR(H49<-250000,H49>250000,I49<-0.1,I49>0.1),(OR(H49>=10000,H49<=-10000))),"*",IF(AND(OR($A$1=1,$A$1=2,$A$1=4,$A$1=5,$A$1=7,$A$1=8,$A$1=10,$A$1=11),OR(H49<=-250000,H49>=250000),(OR(H49>=10000,H49<=-10000))),"*","")) ->  | M49: 1000000 | N49: =L49-M49 -> -1000000 | O49: =IF(M49=0,IF(L49>0,100,IF(L49=0,0,-100)),(N49/M49)*100) -> -100
C50: 1009 | D50: CRIST 7 REHEATER | E50: VICKI | F50: 20959.32 | G50: 0 | H50: 20959.32 | I50: 1 | J50: =IF(AND(OR($A$1=3,$A$1=6,$A$1=9,$A$1=12),OR(H50<-250000,H50>250000,I50<-0.1,I50>0.1),(OR(H50>=10000,H50<=-10000))),"*",IF(AND(OR($A$1=1,$A$1=2,$A$1=4,$A$1=5,$A$1=7,$A$1=8,$A$1=10,$A$1=11),OR(H50<=-250000,H50>=250000),(OR(H50>=10000,H50<=-10000))),"*","")) -> * | M50: 2000000 | N50: -2000000 | O50: -100 | P50: =IF(OR(N50>999999,N50<-999999),"**","") -> **
C51: 1010 | D51: CRIST U6 PRIMARY SUPERHEATER REPLACEMENT | E51: VICKI | F51: 2245202.77 | G51: 1249992 | H51: 995210.77 | I51: 0.7961737115 | J51: * | M51: 2500000 | N51: -2500000 | O51: -100
C52: 1013 | D52: CRIST 6 HRA SIDEWALLS HEADER TO HEADER | E52: VICKI | F52: 3088216.67 | G52: 3450000 | H52: -361783.33 | I52: -0.1048647333 | J52: * | M52: 3450000 | N52: -3450000 | O52: -100
C53: 1015 | D53: CRIST 6 STATIC EXCITER AND VOLTAGE REGULATOR | E53: VICKI | F53: 1290455.81 | G53: 1099998 | H53: 190457.81 | I53: 0.1731437784 | J53: * | M53: 2200000 | N53: -2200000 | O53: -100
C54: 1017 | D54: CRIST 7 STATIC EXCITER AND VOLTAGE REGULATOR | E54: VICKI | F54: 410541.99 | G54: 0 | H54: 410541.99 | I54: 1 | J54: * | M54: 1700000 | N54: -1700000 | O54: -100
C55: 1034 | D55: CRIST U6 BREAKERS CABLE & SWITCHES PER ARC FLASH STUDY | E55: VICKI | F55: 0 | G55: 100000 | H55: -100000 | I55: -1 | J55: * | M55: 100000 | N55: -100000 | O55: -100 | P55: =IF(OR(N55>999999,N55<-999999),"**","") -> 
C56: 1039 | D56: CRIST 5 BOTTOM ASH DOGHOUSE AND SLUICE GATE | E56: VICKI | F56: 0 | G56: 0 | H56: 0 | I56: 0 | M56: 138300 | N56: -138300 | O56: -100
C57: 1052 | D57: CRIST 6 - 6A 4160 VOLT BREAKERS | E57: VICKI | F57: 816737.73 | G57: 199998 | H57: 616739.73 | I57: 3.083729487 | J57: * | M57: 400000 | N57: -400000 | O57: -100
C58: 1053 | D58: CRIST 6 - 6B 4160 VOLT BREAKERS | E58: VICKI | F58: 310185.94 | G58: 187500 | H58: 122685.94 | I58: 0.6543250133 | J58: * | M58: 375000 | N58: -375000 | O58: -100
C59: 1063 | E59: VICKI | F59: 0 | G59: 0 | H59: 0 | I59: 0 | J59: =IF(AND(OR($A$1=3,$A$1=6,$A$1=9,$A$1=12),OR(H59<-250000,H59>250000,I59<-0.1,I59>0.1),(OR(H59>=10000,H59<=-10000))),"*",IF(AND(OR($A$1=1,$A$1=2,$A$1=4,$A$1=5,$A$1=7,$A$1=8,$A$1=10,$A$1=11),OR(H59<=-250000,H59>=250000),(OR(H59>=10000,H59<=-10000))),"*","")) ->  | N59: =L59-M59 -> 0 | O59: =IF(M59=0,IF(L59>0,100,IF(L59=0,0,-100)),(N59/M59)*100) -> 0
C60: 1066 | D60: CRIST 6 REHEAT SPRAY SYSTEM | E60: VICKI | F60: 255408.03 | G60: 250000 | H60: 5408.03 | I60: 0.02163212 | M60: 250000 | N60: -250000 | O60: -100
C61: 1072 | D61: CRIST 4-7 NITROGEN CAPPING SYSTEM | E61: VICKI | F61: 0 | G61: 210200 | H61: -210200 | I61: -1 | J61: * | M61: 210200 | N61: -210200 | O61: -100
C62: 1077 | D62: CRIST UNIT 6 TURBINE OIL COOLER | E62: VICKI | F62: 154529.91 | G62: 144942 | H62: 9587.91 | I62: 0.06614997723 | M62: 290000 | N62: -290000 | O62: -100
C63: 1088 | D63: CRIST UNIT 6 FINISHING SUPERHEAT HEADER | E63: VICKI | F63: 0 | G63: 460000 | H63: -460000 | I63: -1 | J63: * | M63: 1150000 | N63: -1150000 | O63: -100
C64: 1092 | D64: CRIST 7 REPLACE FINISHING SUPER HEAT OUTLET HEADER | E64: VICKI | F64: 0 | G64: 600000 | H64: -600000 | I64: -1 | J64: * | M64: 1500000 | N64: -1500000 | O64: -100
C65: 1094 | D65: CRIST FUEL HANDLING CRANE | E65: VICKI | F65: 4529334.15 | G65: 7327603 | H65: -2798268.85 | I65: -0.3818805208 | J65: * | M65: 7327603 | N65: -7327603 | O65: -100
C66: 1100 | D66: CRIST-MINOR MISC ITEMS | E66: VICKI | F66: 383641.76 | G66: 249900 | H66: 133741.76 | I66: 0.5351811124 | J66: * | M66: 500000 | N66: -500000 | O66: -100 | Q66: Year End projection increased due to change in accounting policy for issuing stores items (spares) with RUC's
C67: 1110 | D67: CRIST-7 REHEAT OUTLET HEADER REPLACEMENT | E67: VICKI | F67: 2974.34 | G67: 0 | H67: 2974.34 | I67: 1 | M67: 1000000 | N67: -1000000 | O67: -100
C68: 1111 | D68: CRIST-6 LOWER ECNONMIZER AND HEADER REPLACEMENT | E68: VICKI | F68: 1590463.62 | G68: 2450000 | H68: -859536.38 | I68: -0.3508311755 | J68: * | M68: 2450000 | N68: -2450000 | O68: -100
C69: 1114 | D69: CRIST 5-PULVERIZED COAL PIPING | E69: VICKI | F69: 45180.78 | G69: 749700 | H69: -704519.22 | I69: -0.9397348539 | J69: * | M69: 1500000 | N69: -1500000 | O69: -100
C70: 1116 | D70: CRIST-5 GENERATOR STATOR REWIND | E70: VICKI | F70: 0 | G70: 0 | H70: 0 | I70: 0 | M70: 3500000 | N70: -3500000 | O70: -100
C71: 1120 | E71: VICKI | F71: 0 | G71: 0 | H71: 0 | I71: 0 | N71: 0 | O71: 0
C72: 1121 | D72: CRIST 6 REHEAT HEADER | E72: VICKI | F72: 226240.95 | G72: 1100000 | H72: -873759.05 | I72: -0.7943264091 | J72: * | M72: 1100000 | N72: =L72-M72 -> -1100000 | O72: =IF(M72=0,IF(L72>0,100,IF(L72=0,0,-100)),(N72/M72)*100) -> -100
C73: 1122 | D73: CRIST BARGE HAUL SYSTEM | E73: VICKI | F73: 172608.32 | G73: 0 | H73: 172608.32 | I73: 1 | J73: * | M73: 0 | N73: =L73-M73 -> 0 | O73: =IF(M73=0,IF(L73>0,100,IF(L73=0,0,-100)),(N73/M73)*100) -> 0
C74: 1126 | D74: CRIST 4 & 5 REPLACE INTAKE SCREENS | E74: VICKI | F74: 201395.14 | G74: 0 | H74: 201395.14 | I74: 1 | J74: * | M74: 500000 | N74: -500000 | O74: -100
C75: 1133 | D75: CRIST 6 FD FAN OUTLET POSITIONER REPLACEMENTS | E75: VICKI | F75: 18399.79 | G75: 137500 | H75: -119100.21 | I75: -0.8661833455 | J75: * | M75: 137500 | N75: =L75-M75 -> -137500 | O75: =IF(M75=0,IF(L75>0,100,IF(L75=0,0,-100)),(N75/M75)*100) -> -100
C76: 1134 | D76: CRIST 6 CONTROL UPGRADE | E76: VICKI | F76: 80986.28 | G76: 385000 | H76: -304013.72 | I76: -0.789646026 | J76: * | M76: 385000 | N76: -385000 | O76: -100
C77: 1135 | D77: CRIST 5 L-O TURBINE BLADE | E77: VICKI | F77: 0 | G77: 0 | H77: 0 | I77: 0 | M77: 566000 | N77: -566000 | O77: -100
C78: 1136 | D78: CRIST 5-16,17 AND 18 STAGE TURBINE BLADE | E78: VICKI | F78: 0 | G78: 0 | H78: 0 | I78: 0 | M78: 300000 | N78: -300000 | O78: -100
C79: 1137 | D79: CRIST 6 GRAPHICS UPGRADE | E79: VICKI | F79: 0 | G79: 330000 | H79: -330000 | I79: -1 | J79: * | M79: 330000 | N79: -330000 | O79: -100
C80: 1141 | D80: CRIST 7 MAIN TURBINE OIL COOLERS | E80: VICKI | F80: 206039.88 | G80: 0 | H80: 206039.88 | I80: 1 | J80: * | N80: 0 | O80: 0
C81: 1144 | D81: CRIST 7 OVATION 400 CONTROLLERS REPLACEMENT | E81: VICKI | F81: 0 | G81: 0 | H81: 0 | I81: 0 | M81: 100000 | N81: -100000 | O81: -100
C82: 1146 | D82: CRIST 7 BATTER BANK | E82: VICKI | F82: 196410.63 | G82: 250000 | H82: -53589.37 | I82: -0.21435748 | J82: * | M82: 250000 | N82: -250000 | O82: -100
C83: 1147 | D83: CRIST 4&5 BATTER BANK | E83: VICKI | F83: 53149.43 | G83: 0 | H83: 53149.43 | I83: 1 | J83: * | M83: 250000 | N83: -250000 | O83: -100
C84: 1148 | D84: CRIST - MISC ITEMS | E84: VICKI | F84: 1338799.73 | G84: 250008 | H84: 1088791.73 | I84: 4.355027559 | J84: * | M84: 500000 | N84: -500000 | O84: -100 | Q84: Year End projection increased due to change in accounting policy for issuing stores items (spares) with RUC's
C85: 1150 | D85: =VLOOKUP($C85, Walker_Description, 2, FALSE) -> CRIST 6 - BATTERY BANK | E85: VICKI | F85: =SUMIF(PE, $C85, YTD_Actual) -> 318044.76 | G85: =SUMIF(PE, $C85, YTD_Budget) -> 250000 | H85: =SUMIF(PE, $C85, YTD_Variance_Dollars) -> 68044.76 | I85: =SUMIF(PE, $C85, YTD_Variance_Percentage) -> 0.27217904 | J85: * | M85: 250000 | N85: -250000 | O85: -100
C86: 1152 | D86: CRIST CONDENSATE MAKEUP PIPING | E86: VICKI | F86: 0 | G86: 0 | H86: 0 | I86: 0 | M86: 300000 | N86: -300000 | O86: -100
C87: 1159 | D87: CRIST U7 REPL BREAKERS CABLE & SWITCHES PER ARC FLASH STUDY | E87: VICKI | F87: 329096.34 | G87: 87468 | H87: 241628.34 | I87: 2.76247702 | J87: * | M87: 175000 | N87: -175000 | O87: -100
C88: 1160 | E88: VICKI | F88: 0 | G88: 0 | H88: 0 | I88: 0 | N88: 0 | O88: 0
C89: 1172 | D89: CRIST U5 REPL BREAKERS CABLE & SWITHCES FOR ARC FLASH STUDY | E89: VICKI | F89: 0 | G89: 0 | H89: 0 | I89: 0 | M89: 250000 | N89: -250000 | O89: -100
C90: 1177 | D90: CRIST U6 SW COOLER REPLACEMENT | E90: VICKI | F90: 0 | G90: 500000 | H90: -500000 | I90: -1 | J90: * | M90: 500000 | N90: -500000 | O90: -100
C91: 1179 | E91: VICKI | F91: 0 | G91: 0 | H91: 0 | I91: 0 | J91: =IF(AND(OR($A$1=3,$A$1=6,$A$1=9,$A$1=12),OR(H91<-250000,H91>250000,I91<-0.1,I91>0.1),(OR(H91>=10000,H91<=-10000))),"*",IF(AND(OR($A$1=1,$A$1=2,$A$1=4,$A$1=5,$A$1=7,$A$1=8,$A$1=10,$A$1=11),OR(H91<=-250000,H91>=250000),(OR(H91>=10000,H91<=-10000))),"*","")) ->  | M91: 0 | N91: =L91-M91 -> 0 | O91: =IF(M91=0,IF(L91>0,100,IF(L91=0,0,-100)),(N91/M91)*100) -> 0
C92: 1196 | D92: CRIST 6 REHEAT AND SUPERHEAT DAMPERS | E92: VICKI | F92: 697559.8 | G92: 415800 | H92: 281759.8 | I92: 0.6776329966 | J92: * | M92: 840000 | N92: -840000 | O92: -100
C93: 1200 | D93: CRIST 6&7 IGNITER AIR SYSTEM | E93: VICKI | F93: 0 | G93: 0 | H93: 0 | I93: 0 | M93: 250000 | N93: -250000 | O93: -100
C94: 1209 | D94: CRIST ASH SYSTEM AIR COMPRESSORS | E94: VICKI | F94: 80963.36 | G94: 135000 | H94: -54036.64 | I94: -0.4002714074 | J94: * | M94: 135000 | N94: -135000 | O94: -100
C95: 1210 | D95: CRIST CYBER SECURITY | E95: VICKI | F95: 3501.31 | G95: 199920 | H95: -196418.69 | I95: -0.9824864446 | J95: * | M95: 400000 | N95: -400000 | O95: -100
C96: 1221 | D96: CRIST REPLACE HYDROMIXERS | E96: VICKI | F96: 420097.96 | G96: 1000000 | H96: -579902.04 | I96: -0.57990204 | J96: * | M96: 1000000 | N96: -1000000 | O96: -100
C97: 1223 | E97: VICKI | F97: 0 | G97: 0 | H97: 0 | I97: 0 | N97: 0 | O97: 0
C98: 1230 | D98: CRIST 6 REPL REHEATER | E98: VICKI | F98: 4748157.16 | G98: 1732500 | H98: 3015657.16 | I98: 1.740639053 | J98: * | M98: 3500000 | N98: -3500000 | O98: -100 | P98: =IF(OR(N98>999999,N98<-999999),"**","") -> **
C99: 1231 | D99: CRIST 6&7 BOILER AWARE PROGRAM | E99: VICKI | F99: 0 | G99: 80000 | H99: -80000 | I99: -1 | J99: * | M99: 80000 | N99: -80000 | O99: -100
C100: 1254 | D100: CRIST COMMON CONVEYOR BELTS REPLACEMENT | E100: VICKI | F100: 137760.76 | G100: 0 | H100: 137760.76 | I100: 1 | J100: * | M100: 150000 | N100: -150000 | O100: -100 | P100: =IF(OR(N100>999999,N100<-999999),"**","") -> 
C101: 1257 | D101: CRIST 4-7 DEMINERALIZER NEUTRALIZATION BASIN PUMPS | E101: VICKI | F101: 0 | G101: 0 | H101: 0 | I101: 0 | M101: 210000 | N101: =L101-M101 -> -210000 | O101: =IF(M101=0,IF(L101>0,100,IF(L101=0,0,-100)),(N101/M101)*100) -> -100
C102: 1258 | D102: CRIST 4-7 DEMINERALIZER CONTROLS REPLACEMENT | E102: VICKI | F102: 102350.52 | G102: 0 | H102: 102350.52 | I102: 1 | J102: * | M102: 0 | N102: 0 | O102: 0
C103: 1262 | D103: CRIST UNIT 6 HOT REHEAT PIPING | E103: VICKI | F103: 19526.84 | G103: 1000002 | H103: -980475.16 | I103: -0.9804731991 | J103: * | M103: 2000000 | N103: -2000000 | O103: -100
C104: 1267 | D104: CRIST 4-7 NEW SIDE COAL YARD 575 VOLT BREAKERS | E104: VICKI | F104: 122223.85 | G104: 0 | H104: 122223.85 | I104: 1 | J104: * | M104: 0 | N104: =L104-M104 -> 0 | O104: =IF(M104=0,IF(L104>0,100,IF(L104=0,0,-100)),(N104/M104)*100) -> 0
C105: 1300 | D105: SCHOLZ - MISC. STEAM PLANT ADDITIONS | E105: VICKI | F105: 48051.72 | G105: 60000 | H105: -11948.28 | I105: -0.199138 | J105: * | M105: 120000
C106: 1400 | D106: SMITH 1&2 - MISC. STEAM PLANT ADDITIONS | E106: VICKI | F106: 123177.77 | G106: 212418 | H106: -89240.23 | I106: -0.4201161389 | J106: * | M106: 425000 | N106: -425000 | O106: -100 | P106: =IF(OR(N106>999999,N106<-999999),"**","") -> 
C107: 1403 | D107: SMITH 3 - 3A & 3B GAS TURBINES AIR FILTRATION SYSTEM | E107: VICKI | F107: 52576.47 | G107: 0 | H107: 52576.47 | I107: 1 | J107: * | M107: 0 | N107: 0 | O107: 0
C108: 1421 | D108: SMITH - UNIT A COMBUSTION TURBINE CONTROLS REPLACEMENT | E108: VICKI | F108: 1881592.34 | G108: 0 | H108: 1881592.34 | I108: 1 | J108: * | M108: 0 | N108: 0 | O108: 0 | P108: =IF(OR(N108>999999,N108<-999999),"**","") -> 
C109: 1424 | D109: SMITH 3 - TURBINE CONTROLS REPLACEMENT | E109: VICKI | F109: 0 | G109: 1500000 | H109: -1500000 | I109: -1 | J109: * | M109: 1500000 | N109: =L109-M109 -> -1500000 | O109: =IF(M109=0,IF(L109>0,100,IF(L109=0,0,-100)),(N109/M109)*100) -> -100
C110: 1427 | D110: SMITH 1 - VACUUM PUMPS | E110: VICKI | F110: 0 | G110: 250000 | H110: -250000 | I110: -1 | J110: * | M110: 250000 | N110: -250000 | O110: -100
C111: 1434 | D111: SMITH 1 - FLY ASH AND SOOTBLOWER CONTROLS | E111: VICKI | F111: 0 | G111: 200000 | H111: -200000 | I111: -1 | J111: * | M111: 200000 | N111: -200000 | O111: -100
C112: 1465 | D112: SMITH 2 - REPLACE DUCTWORK/EXPANSION JOINTS | E112: VICKI | F112: 351.26 | G112: 0 | H112: 351.26 | I112: 1 | M112: 0 | N112: 0 | O112: 0
C113: 1471 | D113: SMITH 1 - REPLACE RETRACTS ON BOILERS | E113: VICKI | F113: 0 | G113: 350000 | H113: -350000 | I113: -1 | J113: * | M113: 350000 | N113: -350000 | O113: -100
C114: 1496 | D114: SMITH 2 - EXPANSION JOINT REPLACEMENT | E114: VICKI | F114: 192836.92 | G114: 0 | H114: 192836.92 | I114: 1 | J114: * | M114: 300000 | N114: -300000 | O114: -100
C115: 1500 | D115: DANIEL-MISC. STEAM PLANT ADDITIONS & IMP. | E115: VICKI | F115: 77613.02 | G115: 111907 | H115: -34293.98 | I115: -0.3064507135 | J115: * | M115: 212632 | N115: -212632 | O115: -100
C116: 1515 | D116: DANIEL 2 ACE TWIP C05348 MS PE 2185 | E116: VICKI | F116: 458711.75 | G116: 100286 | H116: 358425.75 | I116: 3.574035758 | J116: * | M116: 200541 | N116: -200541 | O116: -100
C117: 1532 | D117: DANIEL 2 HP/IP TURBINE UPGRADE | E117: VICKI | F117: 5369263.92 | G117: 2613072 | H117: 2756191.92 | I117: 1.054770753 | J117: * | M117: 5228233 | N117: -5228233 | O117: -100 | P117: =IF(OR(N117>999999,N117<-999999),"**","") -> **
C118: 1557 | D118: DANIEL 1&2 CONVEYOR BELT 1D C01719 | E118: VICKI | F118: 0 | G118: 18792 | H118: -18792 | I118: -1 | J118: * | M118: 37601 | N118: -37601 | O118: -100
C119: 1564 | D119: DANIEL 2 CAPITAL VALVE REPLACEMENTS C03256 | E119: VICKI | F119: 34489.01 | G119: 24801 | H119: 9688.01 | I119: 0.3906298133 | M119: 51638 | N119: -51638 | O119: -100
C120: 1567 | D120: =VLOOKUP($C120, Walker_Description, 2, FALSE) -> DANIEL 1&2 CONTROL ROOM A/C SYSTEMS | E120: VICKI | F120: =SUMIF(PE, $C120, YTD_Actual) -> 0 | G120: =SUMIF(PE, $C120, YTD_Budget) -> 100349 | H120: =SUMIF(PE, $C120, YTD_Variance_Dollars) -> -100349 | I120: =SUMIF(PE, $C120, YTD_Variance_Percentage) -> -1 | J120: * | M120: 100349 | N120: -100349 | O120: -100 | P120: =IF(OR(N120>999999,N120<-999999),"**","") -> 
C121: 1568 | D121: DANIEL 1 HOT AIR HEATER BASKET | E121: VICKI | F121: 298.51 | G121: 0 | H121: 298.51 | I121: 1 | J121: =IF(AND(OR($A$1=3,$A$1=6,$A$1=9,$A$1=12),OR(H121<-250000,H121>250000,I121<-0.1,I121>0.1),(OR(H121>=10000,H121<=-10000))),"*",IF(AND(OR($A$1=1,$A$1=2,$A$1=4,$A$1=5,$A$1=7,$A$1=8,$A$1=10,$A$1=11),OR(H121<=-250000,H121>=250000),(OR(H121>=10000,H121<=-10000))),"*","")) ->  | M121: 0 | N121: =L121-M121 -> 0 | O121: =IF(M121=0,IF(L121>0,100,IF(L121=0,0,-100)),(N121/M121)*100) -> 0 | P121: =IF(OR(N121>999999,N121<-999999),"**","") -> 
C122: 1569 | D122: DANIEL 2 HOT AIR HEATER BASKET | E122: VICKI | F122: 403142.62 | G122: 376315 | H122: 26827.62 | I122: 0.07129032858 | J122: =IF(AND(OR($A$1=3,$A$1=6,$A$1=9,$A$1=12),OR(H122<-250000,H122>250000,I122<-0.1,I122>0.1),(OR(H122>=10000,H122<=-10000))),"*",IF(AND(OR($A$1=1,$A$1=2,$A$1=4,$A$1=5,$A$1=7,$A$1=8,$A$1=10,$A$1=11),OR(H122<=-250000,H122>=250000),(OR(H122>=10000,H122<=-10000))),"*","")) ->  | M122: 376315 | N122: -376315 | O122: -100
C123: 1572 | D123: DANIEL 1&2 FIRE PROTECTION CONTROLS | E123: VICKI | F123: 0 | G123: 37500 | H123: -37500 | I123: -1 | J123: * | M123: 37500 | N123: -37500 | O123: -100
C124: 1581 | D124: DANIEL !&2 CONVEYOR DIRECT DRIVE GEARBOXES C07627 | E124: VICKI | F124: 0 | G124: 110429 | H124: -110429 | I124: -1 | J124: * | M124: 110429 | N124: -110429 | O124: -100
C125: 1584 | D125: DANIEL 1&2 AIR COMPRESSORS C07607 1D & 2B | E125: VICKI | F125: 0 | G125: 140491 | H125: -140491 | I125: -1 | J125: * | M125: 140491 | N125: -140491 | O125: -100
C126: 1585 | D126: DANIEL 2 INLET VANES ON PA FANS | E126: VICKI | F126: 0 | G126: 185702 | H126: -185702 | I126: -1 | J126: * | M126: 185702 | N126: -185702 | O126: -100
C127: 1593 | D127: DANIEL 2D BWCP REPLACEMENT | E127: VICKI | F127: 193399.58 | G127: 0 | H127: 193399.58 | I127: 1 | J127: =IF(AND(OR($A$1=3,$A$1=6,$A$1=9,$A$1=12),OR(H127<-250000,H127>250000,I127<-0.1,I127>0.1),(OR(H127>=10000,H127<=-10000))),"*",IF(AND(OR($A$1=1,$A$1=2,$A$1=4,$A$1=5,$A$1=7,$A$1=8,$A$1=10,$A$1=11),OR(H127<=-250000,H127>=250000),(OR(H127>=10000,H127<=-10000))),"*","")) -> * | M127: 185702 | N127: =L127-M127 -> -185702 | O127: =IF(M127=0,IF(L127>0,100,IF(L127=0,0,-100)),(N127/M127)*100) -> -100
C128: 1600 | D128: SMITH 3 - MISC. STEAM PLANT ADDITIONS | E128: VICKI | F128: 1251403.92 | G128: 599760 | H128: 651643.92 | I128: 1.086507803 | J128: * | M128: 1200000 | N128: -1200000 | O128: -100 | P128: =IF(OR(N128>999999,N128<-999999),"**","") -> **
C129: 1604 | D129: SMITH - BUILD NEW WAREHOUSE FOR INVENTORY | E129: VICKI | F129: 9500 | G129: 0 | H129: 9500 | I129: 1 | M129: 2250000 | N129: =L129-M129 -> -2250000 | O129: =IF(M129=0,IF(L129>0,100,IF(L129=0,0,-100)),(N129/M129)*100) -> -100
C130: 1607 | D130: SMITH - FISH EXCLUSION DEVICE | E130: VICKI | F130: 281275.79 | G130: 0 | H130: 281275.79 | I130: 1 | J130: * | M130: 0 | N130: 0 | O130: 0
C131: 1610 | D131: SMITH - CYBER SECURITY | E131: VICKI | F131: 145486.73 | G131: 83620 | H131: 61866.73 | I131: 0.7398556565 | J131: * | M131: 167407 | N131: -167407 | O131: -100 | P131: =IF(OR(N131>999999,N131<-999999),"**","") -> 
C132: 1611 | D132: SMITH 3 - WATER LAB BUILDING REPLACEMENT | E132: VICKI | F132: 90391.93 | G132: 0 | H132: 90391.93 | I132: 1 | J132: * | M132: 0 | N132: 0 | O132: 0
C133: 1619 | D133: SMITH 3 - AIR HANDLING UNIT | E133: VICKI | F133: 0 | G133: 85000 | H133: -85000 | I133: -1 | J133: * | M133: 85000 | N133: -85000 | O133: -100 | P133: =IF(OR(N133>999999,N133<-999999),"**","") -> 
C134: 1656 | D134: SMITH 1&2 REPLACE NO.1 AND TRIPPER BELTS | E134: VICKI | F134: 3764.68 | G134: 0 | H134: 3764.68 | I134: 1 | M134: 0 | N134: 0 | O134: 0
C135: 1679 | D135: SMITH 3 - CORROSION PROJECT | E135: VICKI | F135: 124341.82 | G135: 400000 | H135: -275658.18 | I135: -0.68914545 | J135: * | M135: 1000000 | N135: -1000000 | O135: -100
C136: 1700 | D136: SCHERER-MISC. ADDITIONS & IMPROVEMENTS | E136: VICKI | F136: 1619915.28 | G136: 0 | H136: 1619915.28 | I136: 1 | J136: * | M136: 0 | N136: 0 | O136: 0
C137: 1705 | D137: SCHERER 3 SUPERHEATER OUTLET | E137: VICKI | F137: 25394.94 | G137: 0 | H137: 25394.94 | I137: 1 | J137: * | M137: 0 | N137: 0 | O137: 0
C138: 1707 | D138: SCHERER 3&4 RELOCATION OF FIRE HOUSE TRESTLE | E138: VICKI | F138: -367.5 | G138: 0 | H138: -367.5 | I138: 1 | J138: =IF(AND(OR($A$1=3,$A$1=6,$A$1=9,$A$1=12),OR(H138<-250000,H138>250000,I138<-0.1,I138>0.1),(OR(H138>=10000,H138<=-10000))),"*",IF(AND(OR($A$1=1,$A$1=2,$A$1=4,$A$1=5,$A$1=7,$A$1=8,$A$1=10,$A$1=11),OR(H138<=-250000,H138>=250000),(OR(H138>=10000,H138<=-10000))),"*","")) ->  | M138: 0 | N138: =L138-M138 -> 0 | O138: =IF(M138=0,IF(L138>0,100,IF(L138=0,0,-100)),(N138/M138)*100) -> 0
C139: 1709 | D139: SCHERER 3 HP TURBINE ROTOR | E139: VICKI | F139: -123148.66 | G139: 375750 | H139: -498898.66 | I139: -1.327740945 | J139: * | M139: 375750 | N139: -375750 | O139: -100
C140: 1716 | D140: SCHERER PORTABLE EQUIPMENT | E140: VICKI | F140: 0 | G140: 14330 | H140: -14330 | I140: -1 | J140: * | M140: 18959 | N140: -18959 | O140: -100
C141: 1717 | D141: SCHERER LAND PURCHASE | E141: VICKI | F141: 6883.84 | G141: 15625 | H141: -8741.16 | I141: -0.55943424 | M141: 31250 | N141: -31250 | O141: -100
C142: 1721 | D142: SCHERER -TRACKED DOZER | E142: VICKI | F142: 0 | G142: 90686 | H142: -90686 | I142: -1 | J142: * | M142: 90686 | N142: -90686 | O142: -100 | P142: =IF(OR(N142>999999,N142<-999999),"**","") -> 
C143: 1732 | D143: SCHERER 3 REPLACE CHILLER | E143: VICKI | F143: 101343.7 | G143: 0 | H143: 101343.7 | I143: 1 | J143: * | M143: 0 | N143: 0 | O143: 0
C144: 1733 | D144: SCHERER 3 BOILER SONIC CLEANING EQUIP | E144: VICKI | F144: 60740.6 | G144: 0 | H144: 60740.6 | I144: 1 | J144: * | M144: 0 | N144: =L144-M144 -> 0 | O144: =IF(M144=0,IF(L144>0,100,IF(L144=0,0,-100)),(N144/M144)*100) -> 0
C145: 1736 | D145: SCHERER REPLACE MOVE AND REPLACE TRESTLE FEEDERS | E145: VICKI | F145: 0 | G145: 625 | H145: -625 | I145: -1 | M145: 7351 | N145: -7351 | O145: -100
C146: 1739 | D146: SCHERER 3 REPLACE GENERATOR 500KV BREAKER | E146: VICKI | F146: 289563.36 | G146: 0 | H146: 289563.36 | I146: 1 | J146: * | M146: 0 | N146: =L146-M146 -> 0 | O146: =IF(M146=0,IF(L146>0,100,IF(L146=0,0,-100)),(N146/M146)*100) -> 0
C147: 1742 | D147: SCHERER 3 REPL STATION SERV TRANSFORMER | E147: VICKI | F147: 0 | G147: 250000 | H147: -250000 | I147: -1 | J147: * | M147: 250000 | N147: -250000 | O147: -100
C148: 1743 | D148: SCHERER COMMON SERVICE WATER PIPING | E148: VICKI | F148: 129.93 | G148: 0 | H148: 129.93 | I148: 1 | J148: =IF(AND(OR($A$1=3,$A$1=6,$A$1=9,$A$1=12),OR(H148<-250000,H148>250000,I148<-0.1,I148>0.1),(OR(H148>=10000,H148<=-10000))),"*",IF(AND(OR($A$1=1,$A$1=2,$A$1=4,$A$1=5,$A$1=7,$A$1=8,$A$1=10,$A$1=11),OR(H148<=-250000,H148>=250000),(OR(H148>=10000,H148<=-10000))),"*","")) ->  | M148: 0 | N148: =L148-M148 -> 0 | O148: =IF(M148=0,IF(L148>0,100,IF(L148=0,0,-100)),(N148/M148)*100) -> 0
C149: 1747 | D149: SCHERER 3 BOILER WATER CIRC PUMP | E149: VICKI | F149: 21.17 | G149: 0 | H149: 21.17 | I149: 1 | M149: 0 | N149: 0 | O149: 0
C150: 1750 | D150: SCHERER - MISC ADDITIONS AND IMPROVMENTS | E150: VICKI | F150: 87753.73 | G150: 212578 | H150: -124824.27 | I150: -0.5871927951 | J150: * | M150: 351633 | N150: -351633 | O150: -100
C151: 1755 | D151: SCHERER TRESTLE DUST SUPPRESSION COMMON | E151: VICKI | F151: -6581.63 | G151: 0 | H151: -6581.63 | I151: 1 | M151: 0 | N151: 0 | O151: 0
C152: 1757 | D152: SCHERER 3 REPLACE AIR HEATER BASKETS | E152: VICKI | F152: 54332.41 | G152: 0 | H152: 54332.41 | I152: 1 | J152: * | M152: 0 | N152: 0 | O152: 0
C153: 1761 | D153: SCHERER 3 CONDENSATE POLISHER | E153: VICKI | F153: 0 | G153: 1250 | H153: -1250 | I153: -1 | M153: 50000 | N153: -50000 | O153: -100 | P153: =IF(OR(N153>999999,N153<-999999),"**","") -> 
C154: 1766 | D154: SCHERER 3 & 4 REPLACE 3D - DUSTLESS TRANSFER | E154: VICKI | F154: 10197.08 | G154: 0 | H154: 10197.08 | I154: 1 | J154: * | M154: 0 | N154: =L154-M154 -> 0 | O154: =IF(M154=0,IF(L154>0,100,IF(L154=0,0,-100)),(N154/M154)*100) -> 0
C155: 1767 | D155: SCHERER 3 & 4 INSTALL ELEVATOR AT C CRUSHER HOUSE | E155: VICKI | F155: 7457.01 | G155: 75000 | H155: -67542.99 | I155: -0.9005732 | J155: * | M155: 75000 | N155: -75000 | O155: -100
C156: 1769 | D156: =VLOOKUP($C156, Walker_Description, 2, FALSE) -> SCHERER 3 & 4 INSTALL SERVICE WATER LINE FOR DUST SUPPRESSIO | E156: VICKI | F156: =SUMIF(PE, $C156, YTD_Actual) -> 0 | G156: =SUMIF(PE, $C156, YTD_Budget) -> 57813 | H156: =SUMIF(PE, $C156, YTD_Variance_Dollars) -> -57813 | I156: =SUMIF(PE, $C156, YTD_Variance_Percentage) -> -1 | J156: * | M156: 57813 | N156: -57813 | O156: -100
C157: 1772 | D157: SCHERER - REPLACE SERVICE BLDG AH UNIT AND CONTROLS | E157: VICKI | F157: 0 | G157: 1014 | H157: -1014 | I157: -1 | M157: 2315 | N157: -2315 | O157: -100
C158: 1773 | D158: SCHERER COMMON REPLACE COAL PILE RUN-OFF POND PIPING | E158: VICKI | F158: 9547.59 | G158: 0 | H158: 9547.59 | I158: 1 | M158: 0 | N158: 0 | O158: 0
C159: 1774 | D159: SCHERER 3 REPLACE FRONT PENDANT REHEATER | E159: VICKI | F159: 1537.55 | G159: 750 | H159: 787.55 | I159: 1.050066667 | M159: 375000 | N159: =L159-M159 -> -375000 | O159: =IF(M159=0,IF(L159>0,100,IF(L159=0,0,-100)),(N159/M159)*100) -> -100
C160: 1775 | D160: SCHERER 3 REPLACE SOOTBLOWER CONTROLS | E160: VICKI | F160: 28317.33 | G160: 0 | H160: 28317.33 | I160: 1 | J160: * | M160: 0 | N160: 0 | O160: 0
C161: 1784 | D161: SCHERER 3 TRAVELING WATER SCREEN ON COOLING TOWER 369703 | E161: VICKI | F161: 589.98 | G161: 0 | H161: 589.98 | I161: 1 | M161: 0 | N161: 0 | O161: 0
C162: 1785 | D162: SCHERER COMMON REVERSE OSMOSIS WATER TREATMENT PLANT | E162: VICKI | F162: 8352.59 | G162: 0 | H162: 8352.59 | I162: 1 | M162: 93750 | N162: -93750 | O162: -100
C163: 1814 | D163: DANIEL 2 EXPANSION JOINTS C00435 & C00437 | E163: VICKI | F163: 93857.74 | G163: 130373 | H163: -36515.26 | I163: -0.2800829926 | J163: * | M163: 130373 | N163: -130373 | O163: -100
C164: 1840 | D164: DANIEL TRACTOR DOZER PURCHASE | E164: VICKI | F164: 892351.78 | G164: 0 | H164: 892351.78 | I164: 1 | J164: =IF(AND(OR($A$1=3,$A$1=6,$A$1=9,$A$1=12),OR(H164<-250000,H164>250000,I164<-0.1,I164>0.1),(OR(H164>=10000,H164<=-10000))),"*",IF(AND(OR($A$1=1,$A$1=2,$A$1=4,$A$1=5,$A$1=7,$A$1=8,$A$1=10,$A$1=11),OR(H164<=-250000,H164>=250000),(OR(H164>=10000,H164<=-10000))),"*","")) -> * | M164: 0 | N164: =L164-M164 -> 0 | O164: =IF(M164=0,IF(L164>0,100,IF(L164=0,0,-100)),(N164/M164)*100) -> 0
C165: 1842 | D165: DANIEL 1 GSU TRANSFORMER | E165: VICKI | F165: 201057.44 | G165: 2503668 | H165: -2302610.56 | I165: -0.9196948477 | J165: * | M165: 5005394 | N165: -5005394 | O165: -100
J166: =IF(AND(OR($A$1=3,$A$1=6,$A$1=9,$A$1=12),OR(H166<-250000,H166>250000,I166<-0.1,I166>0.1),(OR(H166>=10000,H166<=-10000))),"*",IF(AND(OR($A$1=1,$A$1=2,$A$1=4,$A$1=5,$A$1=7,$A$1=8,$A$1=10,$A$1=11),OR(H166<=-250000,H166>=250000),(OR(H166>=10000,H166<=-10000))),"*","")) -> 
B167: TOTAL FOSSIL | C167: Remove | D167: =$B167 -> TOTAL FOSSIL | F167: =SUM(F49:F166) -> 38728062.65 | G167: =SUM(G49:G166) -> 37872935 | H167: =F167-G167 -> 855127.65 | I167: =IF(G167=0,1,+H167/G167) -> 0.02257885875 | L167: =SUM(L49:L166) -> 0 | M167: 69168715 | N167: =L167-M167 -> -69168715 | O167: =(N167/M167)*100 -> -100
J168: =IF(AND(OR($A$1=3,$A$1=6,$A$1=9,$A$1=12),OR(H168<-250000,H168>250000,I168<-0.1,I168>0.1),(OR(H168>=10000,H168<=-10000))),"*",IF(AND(OR($A$1=1,$A$1=2,$A$1=4,$A$1=5,$A$1=7,$A$1=8,$A$1=10,$A$1=11),OR(H168<=-250000,H168>=250000),(OR(H168>=10000,H168<=-10000))),"*","")) -> 
B169: RENEWABLES | J169: =IF(AND(OR($A$1=3,$A$1=6,$A$1=9,$A$1=12),OR(H169<-250000,H169>250000,I169<-0.1,I169>0.1),(OR(H169>=10000,H169<=-10000))),"*",IF(AND(OR($A$1=1,$A$1=2,$A$1=4,$A$1=5,$A$1=7,$A$1=8,$A$1=10,$A$1=11),OR(H169<=-250000,H169>=250000),(OR(H169>=10000,H169<=-10000))),"*","")) -> 
C170: 0090 | D170: =VLOOKUP($C170, Walker_Description, 2, FALSE) -> PERDIDO LANDFILL GAS TO ENERGY PROJECT | E170: VICKI | F170: =SUMIF(PE, $C170, YTD_Actual) -> 1035.03 | G170: =SUMIF(PE, $C170, YTD_Budget) -> 0 | H170: =SUMIF(PE, $C170, YTD_Variance_Dollars) -> 1035.03 | I170: =SUMIF(PE, $C170, YTD_Variance_Percentage) -> 1 | J170: =IF(AND(OR($A$1=3,$A$1=6,$A$1=9,$A$1=12),OR(H170<-250000,H170>250000,I170<-0.1,I170>0.1),(OR(H170>=10000,H170<=-10000))),"*",IF(AND(OR($A$1=1,$A$1=2,$A$1=4,$A$1=5,$A$1=7,$A$1=8,$A$1=10,$A$1=11),OR(H170<=-250000,H170>=250000),(OR(H170>=10000,H170<=-10000))),"*","")) ->  | M170: 0 | N170: =L170-M170 -> 0 | O170: =IF(M170=0,IF(L170>0,100,IF(L170=0,0,-100)),(N170/M170)*100) -> 0
C171: 0091 | D171: =VLOOKUP($C171, Walker_Description, 2, FALSE) -> PERDIDO LANDFILL GAS ENERGY | E171: VICKI | F171: =SUMIF(PE, $C171, YTD_Actual) -> 0 | G171: =SUMIF(PE, $C171, YTD_Budget) -> 60000 | H171: =SUMIF(PE, $C171, YTD_Variance_Dollars) -> -60000 | I171: =SUMIF(PE, $C171, YTD_Variance_Percentage) -> -1 | J171: =IF(AND(OR($A$1=3,$A$1=6,$A$1=9,$A$1=12),OR(H171<-250000,H171>250000,I171<-0.1,I171>0.1),(OR(H171>=10000,H171<=-10000))),"*",IF(AND(OR($A$1=1,$A$1=2,$A$1=4,$A$1=5,$A$1=7,$A$1=8,$A$1=10,$A$1=11),OR(H171<=-250000,H171>=250000),(OR(H171>=10000,H171<=-10000))),"*","")) -> * | M171: 120000 | N171: =L171-M171 -> -120000 | O171: =IF(M171=0,IF(L171>0,100,IF(L171=0,0,-100)),(N171/M171)*100) -> -100
J172: =IF(AND(OR($A$1=3,$A$1=6,$A$1=9,$A$1=12),OR(H172<-250000,H172>250000,I172<-0.1,I172>0.1),(OR(H172>=10000,H172<=-10000))),"*",IF(AND(OR($A$1=1,$A$1=2,$A$1=4,$A$1=5,$A$1=7,$A$1=8,$A$1=10,$A$1=11),OR(H172<=-250000,H172>=250000),(OR(H172>=10000,H172<=-10000))),"*","")) -> 
B173: TOTAL RENEWABLES | C173: Remove | D173: =$B173 -> TOTAL RENEWABLES | F173: =SUM(F170:F172) -> 1035.03 | G173: =SUM(G170:G172) -> 60000 | H173: =F173-G173 -> -58964.97 | I173: =IF(G173=0,1,+H173/G173) -> -0.9827495 | L173: =SUM(L170:L172) -> 0 | M173: 120000 | N173: =L173-M173 -> -120000 | O173: =(N173/M173)*100 -> -100
A175: TOTAL POWER GENERATION | F175: =F167+F46+F173 -> 116339722.9 | G175: =G167+G46+G173 -> 124221160 | H175: =F175-G175 -> -7881437.1 | I175: =IF(G175=0,1,+H175/G175) -> -0.06344681615 | L175: =+L173+L167+L46 -> 0 | M175: 245415296 | N175: =L175-M175 -> -245415296 | O175: =(N175/M175)*100 -> -100
A177: POWER DELIVERY
B178: NEW BUSINESS TRANSMISSION
C179: 2601 | D179: =VLOOKUP($C179, Walker_Description, 2, FALSE) -> SKYGEN 230KV POWER SUPPLY | E179: SARAH | F179: =SUMIF(PE, $C179, YTD_Actual) -> 0 | G179: =SUMIF(PE, $C179, YTD_Budget) -> 0 | H179: =SUMIF(PE, $C179, YTD_Variance_Dollars) -> 0 | I179: =SUMIF(PE, $C179, YTD_Variance_Percentage) -> 0 | M179: 0 | N179: =L179-M179 -> 0 | O179: =IF(M179=0,IF(L179>0,100,IF(L179=0,0,-100)),(N179/M179)*100) -> 0
C180: 2603 | D180: =VLOOKUP($C180, Walker_Description, 2, FALSE) -> 2603 BUILD SHAKY JOE SWAMP TRANSMISSION SUBSTATION | E180: SARAH | F180: =SUMIF(PE, $C180, YTD_Actual) -> 0 | G180: =SUMIF(PE, $C180, YTD_Budget) -> 0 | H180: =SUMIF(PE, $C180, YTD_Variance_Dollars) -> 0 | I180: =SUMIF(PE, $C180, YTD_Variance_Percentage) -> 0 | M180: 0 | N180: =L180-M180 -> 0 | O180: =IF(M180=0,IF(L180>0,100,IF(L180=0,0,-100)),(N180/M180)*100) -> 0
B182: TOTAL NEW BUSINESS TRANSMISSION | C182: Remove | D182: =$B182 -> TOTAL NEW BUSINESS TRANSMISSION | F182: =SUM(F179:F181) -> 0 | G182: =SUM(G179:G181) -> 0 | H182: =F182-G182 -> 0 | I182: =IF(G182=0,1,+H182/G182) -> 1 | L182: =SUM(L179:L181) -> 0 | M182: 0 | N182: =L182-M182 -> 0 | O182: =(N182/M182)*100 -> 
B184: NEW BUSINESS DISTRIBUTION
C185: 2553 | D185: =VLOOKUP($C185, Walker_Description, 2, FALSE) -> NEW BUSINESS STREET LIGHTS | E185: HAL | F185: =SUMIF(PE, $C185, YTD_Actual) -> 220249.15 | G185: =SUMIF(PE, $C185, YTD_Budget) -> 280278 | H185: =SUMIF(PE, $C185, YTD_Variance_Dollars) -> -60028.85 | I185: =SUMIF(PE, $C185, YTD_Variance_Percentage) -> -0.2141761037 | J185: * | M185: 516547 | N185: =L185-M185 -> -516547 | O185: =IF(M185=0,IF(L185>0,100,IF(L185=0,0,-100)),(N185/M185)*100) -> -100 | P185: =IF(OR(N185>999999,N185<-999999),"**","") -> 
C186: 2556 | D186: PRIVATE STREET & YARD LIGHTS | E186: HAL | F186: 714751.13 | G186: 852185 | H186: -137433.87 | I186: -0.1612723411 | J186: * | M186: 1570269 | N186: -1570269 | O186: -100 | P186: **
C187: 2558 | D187: ADVANCED ENERGY MANAGEMENT (AEM) | E187: HAL | F187: 835918.49 | G187: 1140788 | H187: -304869.51 | I187: -0.2672446677 | J187: * | M187: 2427577 | N187: -2427577 | O187: -100
C188: 2550 | D188: CUSTOMER'S METERS | E188: PAUL | F188: 414096.46 | G188: 432000 | H188: -17903.54 | I188: -0.04144337963 | M188: 750000 | N188: -750000 | O188: -100
C189: 2551 | D189: LINE TRANSFORMERS | E189: PAUL | F189: 3393091.83 | G189: 3087000 | H189: 306091.83 | I189: 0.09915511176 | J189: * | M189: 6000000 | N189: -6000000 | O189: -100
C190: 2552 | D190: NEW BUSINESS DISTRIBUTION | E190: PAUL | F190: 1791279.26 | G190: 2745000 | H190: -953720.74 | I190: -0.3474392495 | J190: * | M190: 5281000 | N190: -5281000 | O190: -100
C191: 2554 | D191: NEW BUSINESS - UNDERGROUND | E191: PAUL | F191: 1772557.12 | G191: 3327000 | H191: -1554442.88 | I191: -0.4672205831 | J191: * | M191: 6674000 | N191: -6674000 | O191: -100 | P191: **
C192: 2555 | D192: ADVANCED METERING INFRASTRUCTURE | E192: PAUL | F192: 8387734.43 | G192: 7214000 | H192: 1173734.43 | I192: 0.1627023052 | J192: * | M192: 15826000 | N192: -15826000 | O192: -100 | P192: **
C193: 2559 | D193: METER TREATERS | E193: PAUL | F193: 67766 | G193: 148000 | H193: -80234 | I193: -0.5421216216 | J193: * | M193: 247000 | N193: -247000 | O193: -100
B195: TOTAL NEW BUSINESS DISTRIBUTION | C195: Remove | D195: =$B195 -> TOTAL NEW BUSINESS DISTRIBUTION | F195: =SUM(F185:F194) -> 17597443.87 | G195: =SUM(G185:G194) -> 19226251 | H195: =F195-G195 -> -1628807.13 | I195: =IF(G195=0,1,+H195/G195) -> -0.08471787506 | L195: =SUM(L185:L194) -> 0 | M195: 39292393 | N195: =L195-M195 -> -39292393 | O195: =SUM(O185:O194) -> -900
B197: OTHER TRANSMISSION
C198: 2801 | D198: =VLOOKUP($C198, Walker_Description, 2, FALSE) -> TRANS SUB INFRASTRUCTURE PROJECTS | E198: SARAH | F198: =SUMIF(PE, $C198, YTD_Actual) -> -131432.51 | G198: =SUMIF(PE, $C198, YTD_Budget) -> 340000 | H198: =SUMIF(PE, $C198, YTD_Variance_Dollars) -> -471432.51 | I198: =SUMIF(PE, $C198, YTD_Variance_Percentage) -> -1.386566206 | J198: * | M198: 650000 | N198: =L198-M198 -> -650000 | O198: =IF(M198=0,IF(L198>0,100,IF(L198=0,0,-100)),(N198/M198)*100) -> -100 | P198: =IF(OR(N198>999999,N198<-999999),"**","") -> 
C199: 2802 | D199: TRANS LINE INFRASTRUCTURE PROJECT | E199: SARAH | F199: 3353228.17 | G199: 1450000 | H199: 1903228.17 | I199: 1.312571152 | J199: * | M199: 3000000 | N199: -3000000 | O199: -100 | P199: =IF(OR(N199>999999,N199<-999999),"**","") -> **
C200: 2806 | D200: CRIST-BRENTWOOD 115 KV REPLACE INSULATORS | E200: SARAH | F200: 500561.34 | G200: 0 | H200: 500561.34 | I200: 1 | J200: * | M200: 462500 | N200: -462500 | O200: -100
C201: 2808 | D201: SHOAL RIVER-SANTA ROSA 230KV NEW TL | E201: SARAH | F201: -1568.75 | G201: 0 | H201: -1568.75 | I201: 1 | J201: =IF(AND(OR($A$1=3,$A$1=6,$A$1=9,$A$1=12),OR(H201<-250000,H201>250000,I201<-0.1,I201>0.1),(OR(H201>=10000,H201<=-10000))),"*",IF(AND(OR($A$1=1,$A$1=2,$A$1=4,$A$1=5,$A$1=7,$A$1=8,$A$1=10,$A$1=11),OR(H201<=-250000,H201>=250000),(OR(H201>=10000,H201<=-10000))),"*","")) ->  | M201: 0 | N201: =L201-M201 -> 0 | O201: =IF(M201=0,IF(L201>0,100,IF(L201=0,0,-100)),(N201/M201)*100) -> 0
C202: 2810 | D202: HIGHLAND CTY-MILLERS FERRY 115KV LINE REPL | E202: SARAH | F202: -93995.91 | G202: 60000 | H202: -153995.91 | I202: -2.5665985 | J202: * | M202: 505000 | N202: -505000 | O202: -100 | P202: =IF(OR(N202>999999,N202<-999999),"**","") -> 
C203: 2814 | D203: LAGUNA-SANTA ROSA 230KV CONVERSION | E203: SARAH | F203: 257778.04 | G203: 311506 | H203: -53727.96 | I203: -0.1724780903 | J203: * | M203: 499083 | N203: -499083 | O203: -100
C204: 2822 | D204: TRANS LINE SWITCH REPLACEMENT PROJECT 2006-2008 | E204: SARAH | F204: 2032.86 | G204: 200000 | H204: -197967.14 | I204: -0.9898357 | J204: * | M204: 500000 | N204: -500000 | O204: -100 | P204: =IF(OR(N204>999999,N204<-999999),"**","") -> 
C205: 2825 | D205: SINAI CEMETERY 230 KV REACTOR | E205: SARAH | F205: 103186.74 | G205: 0 | H205: 103186.74 | I205: 1 | J205: * | M205: 0 | N205: 0 | O205: 0 | P205: =IF(OR(N205>999999,N205<-999999),"**","") -> 
C206: 2828 | D206: GLENDALE PROT & CONTROL SYS REPL | E206: SARAH | F206: 486259.99 | G206: 650000 | H206: -163740.01 | I206: -0.2519077077 | J206: * | M206: 650000 | N206: -650000 | O206: -100 | P206: =IF(OR(N206>999999,N206<-999999),"**","") -> 
C207: 2837 | D207: WRIGHT RELAY MODERNIZATION 2015 | E207: SARAH | F207: 3795.38 | G207: 0 | H207: 3795.38 | I207: 1 | M207: 0 | N207: 0 | O207: 0
C208: 2838 | D208: WEWA PROTECTION AND CONTROL REPLACEMENT | E208: SARAH | F208: -57597.43 | G208: 0 | H208: -57597.43 | I208: 1 | J208: * | M208: 0 | N208: 0 | O208: 0
C209: 2839 | D209: BELLEVIEW 230 & 115KV PROT & CONTROL SYS REPL | E209: SARAH | F209: 0 | G209: 0 | H209: 0 | I209: 0 | M209: 90000 | N209: -90000 | O209: -100
C210: 2843 | D210: CALLAWAY 230 & 115KV PROT & CONTROL SYS REPL | E210: SARAH | F210: 932737.33 | G210: 910000 | H210: 22737.33 | I210: 0.02498607692 | M210: 1045000 | N210: -1045000 | O210: -100 | P210: =IF(OR(N210>999999,N210<-999999),"**","") -> **
C211: 2844 | D211: SINAI -WOODRUFF 115KV FIBER INSTALLATION | E211: SARAH | F211: 197444.67 | G211: 498750 | H211: -301305.33 | I211: -0.6041209624 | J211: * | M211: 498750 | N211: -498750 | O211: -100
... 119 more rows

Sheet Summary
A1: Gulf Power Company
A2: =EOMONTH(DATE(2011, 'June 2011'!$A$1, 1), 0) -> 2011-06-30
A3: Year-to-Date Capital Expenditures
A4: Thousands of Dollars
E6: Year-to-Date | N6: Re-Estimated | O6: Estimated
I7: Variance | L7: Original | N7: 2010 | O7: Year-End
A8: Business Unit | E8: Actual | G8: Budget | I8: $ | J8: % | L8: Budget | N8: Expenditures | O8: Variance
A9: Power Generation:
A10: New Generation Projects | E10: 0 | G10: 0 | I10: =(E10-G10) -> 0 | J10: =IF(G10=0,IF(D10>0,100,IF(D10=0,0,-100)),(I10/G10)*100) -> 0 | L10: 0 | N10: 0 | O10: =N10-L10 -> 0
A11: Environmental | E11: =SUMIF('June 2011'!$B:$B, "TOTAL ENVIRONMENTAL", 'June 2011'!F:F)/1000 -> 77610.62522 | G11: =SUMIF('June 2011'!$B:$B, "TOTAL ENVIRONMENTAL", 'June 2011'!G:G)/1000 -> 86288.225 | I11: =(E11-G11) -> -8677.59978 | J11: =IF(G11=0,IF(E11>0,100,IF(D11=0,0,-100)),(I11/G11)*100) -> -10.05652832 | L11: =SUMIF('June 2011'!$B:$B, "TOTAL ENVIRONMENTAL", 'June 2011'!M:M)/1000 -> 176126.581 | N11: =SUMIF('June 2011'!$B:$B, "TOTAL ENVIRONMENTAL", 'June 2011'!L:N)/1000 -> 0 | O11: =N11-L11 -> -176126.581
A12: Production Modifications | E12: 0 | G12: 0 | N12: 0 | O12: 0
A13: Fossil Steam & CT | E13: =SUMIF('June 2011'!$B:$B, "TOTAL FOSSIL", 'June 2011'!F:F)/1000 -> 38728.06265 | G13: =SUMIF('June 2011'!$B:$B, "TOTAL FOSSIL", 'June 2011'!G:G)/1000 -> 37872.935 | I13: =(E13-G13) -> 855.12765 | J13: =IF(G13=0,IF(E13>0,100,IF(D13=0,0,-100)),(I13/G13)*100) -> 2.257885875 | L13: =SUMIF('June 2011'!$B:$B, "TOTAL FOSSIL", 'June 2011'!M:M)/1000 -> 69168.715 | N13: =SUMIF('June 2011'!$B:$B, "TOTAL FOSSIL", 'June 2011'!L:N)/1000 -> 0 | O13: -69168.715
A14: Renewables | E14: =SUMIF('June 2011'!$B:$B, "TOTAL RENEWABLES", 'June 2011'!F:F)/1000 -> 1.03503 | G14: =SUMIF('June 2011'!$B:$B, "TOTAL RENEWABLES", 'June 2011'!G:G)/1000 -> 60 | I14: =(E14-G14) -> -58.96497 | J14: =IF(G14=0,IF(E14>0,100,IF(D14=0,0,-100)),(I14/G14)*100) -> -98.27495 | L14: =SUMIF('June 2011'!$B:$B, "TOTAL RENEWABLES", 'June 2011'!M:M)/1000 -> 120 | N14: =SUMIF('June 2011'!$B:$B, "TOTAL RENEWABLES", 'June 2011'!L:N)/1000 -> 0 | O14: -120
A15: Hydro | E15: 0 | G15: 0 | I15: =(E15-G15) -> 0 | J15: =IF(G15=0,IF(D15>0,100,IF(D15=0,0,-100)),(I15/G15)*100) -> 0 | L15: 0 | N15: 0 | O15: 0
A16: Nuclear | E16: 0 | G16: 0 | I16: =(E16-G16) -> 0 | J16: =IF(G16=0,IF(D16>0,100,IF(D16=0,0,-100)),(I16/G16)*100) -> 0 | L16: 0 | N16: 0 | O16: 0
A17: Nuclear Fuel | E17: 0 | G17: 0 | I17: =(E17-G17) -> 0 | J17: =IF(G17=0,IF(D17>0,100,IF(D17=0,0,-100)),(I17/G17)*100) -> 0 | L17: 0 | N17: 0 | O17: 0
A18: Total Power Generation | E18: =SUM(E10:E17) -> 116339.7229 | G18: =SUM(G10:G17) -> 124221.16 | I18: =SUM(I10:I17) -> -7881.4371 | J18: =IF(G18=0,IF(D18>0,100,IF(D18=0,0,-100)),(I18/G18)*100) -> -6.344681615 | L18: =SUM(L10:L17) -> 245415.296 | N18: =SUM(N10:N17) -> 0 | O18: -245415.296
A19: Power Delivery:
A20: Transmission | E20: =(SUMIF('June 2011'!$B:$B, "TOTAL OTHER TRANSMISSION", 'June 2011'!F:F)+SUMIF('June 2011'!$B:$B, "TOTAL NEW BUSINESS TRANSMISSION ", 'June 2011'!F:F))/1000 -> 30048.01067 | G20: =(SUMIF('June 2011'!$B:$B, "TOTAL OTHER TRANSMISSION", 'June 2011'!G:G)+SUMIF('June 2011'!$B:$B, "TOTAL NEW BUSINESS TRANSMISSION", 'June 2011'!G:G))/1000 -> 37963.984 | I20: =(E20-G20) -> -7915.97333 | J20: =IF(G20=0,IF(E20>0,100,IF(D20=0,0,-100)),(I20/G20)*100) -> -20.85127138 | L20: =(SUMIF('June 2011'!$B:$B,"TOTAL OTHER TRANSMISSION",'June 2011'!M:M)+SUMIF('June 2011'!$B:$B,"TOTAL NEW BUSINESS TRANSMISSION",'June 2011'!M:M))/1000 -> 56402.921 | N20: =(SUMIF('June 2011'!$B:$B, "TOTAL OTHER TRANSMISSION",'June 2011'!L:N)+SUM('June 2011'!N182))/1000 -> 0 | O20: -56402.921
A21: Distribution | E21: =(SUMIF('June 2011'!$B:$B, "TOTAL OTHER DISTRIBUTION", 'June 2011'!F:F)+SUMIF('June 2011'!$B:$B, "TOTAL NEW BUSINESS DISTRIBUTION", 'June 2011'!F:F))/1000 -> 32071.0907 | G21: =(SUMIF('June 2011'!$B:$B, "TOTAL OTHER DISTRIBUTION", 'June 2011'!G:G)+SUMIF('June 2011'!$B:$B, "TOTAL NEW BUSINESS DISTRIBUTION", 'June 2011'!G:G))/1000 -> 36850.251 | I21: =(E21-G21) -> -4779.1603 | J21: =IF(G21=0,IF(E21>0,100,IF(D21=0,0,-100)),(I21/G21)*100) -> -12.96913907 | L21: =(SUMIF('June 2011'!$B:$B, "TOTAL OTHER DISTRIBUTION", 'June 2011'!M:M)+SUMIF('June 2011'!$B:$B, "TOTAL NEW BUSINESS DISTRIBUTION", 'June 2011'!M:M))/1000 -> 69077.393 | N21: =(SUMIF('June 2011'!$B:$B, "TOTAL OTHER DISTRIBUTION", 'June 2011'!L:N)+SUMIF('June 2011'!$B:$B, "TOTAL NEW BUSINESS DISTRIBUTION", 'June 2011'!L:N))/1000 -> 0 | O21: -69077.393
A22: Joint Sub. & Dist. Lines | E22: =SUMIF('June 2011'!$B:$B, "TOTAL JOINT SUB. & DIST. LINE", 'June 2011'!F:F)/1000 -> 1238.52751 | G22: =SUMIF('June 2011'!$B:$B, "TOTAL JOINT SUB. & DIST. LINE", 'June 2011'!G:G)/1000 -> 779 | I22: =(E22-G22) -> 459.52751 | J22: =IF(G22=0,IF(E22>0,100,IF(D22=0,0,-100)),(I22/G22)*100) -> 58.98941078 | L22: =SUMIF('June 2011'!$B:$B, "TOTAL JOINT SUB. & DIST. LINE", 'June 2011'!M:M)/1000 -> 1611 | N22: =SUMIF('June 2011'!$B:$B, "TOTAL JOINT SUB. & DIST. LINE", 'June 2011'!L:N)/1000 -> 0 | O22: -1611
A23: Total Power Delivery | E23: =SUM(E20:E22) -> 63357.62888 | G23: =SUM(G20:G22) -> 75593.235 | I23: =SUM(I20:I22) -> -12235.60612 | J23: =IF(G23=0,IF(E23>0,100,IF(E23=0,0,-100)),(I23/G23)*100) -> -16.18611258 | L23: =SUM(L20:L22) -> 127091.314 | N23: =SUM(N20:N22) -> 0 | O23: -127091.314
A24: General Plant:
A25: Fleet | E25: =SUMIF('June 2011'!$B:$B, "TOTAL FLEET", 'June 2011'!F:F)/1000 -> 381.60199 | G25: =SUMIF('June 2011'!$B:$B, "TOTAL FLEET", 'June 2011'!G:G)/1000 -> 800 | I25: =(E25-G25) -> -418.39801 | J25: =IF(G25=0,IF(E25>0,100,IF(D25=0,0,-100)),(I25/G25)*100) -> -52.29975125 | L25: =SUMIF('June 2011'!$B:$B, "TOTAL FLEET", 'June 2011'!M:M)/1000 -> 1700 | N25: =SUMIF('June 2011'!$B:$B, "TOTAL FLEET", 'June 2011'!L:N)/1000 -> 0 | O25: -1700
A26: Telecommunications | E26: =SUMIF('June 2011'!$B:$B, "TOTAL TELECOMMUNICATIONS", 'June 2011'!F:F)/1000 -> 267.14312 | G26: =SUMIF('June 2011'!$B:$B, "TOTAL TELECOMMUNICATIONS", 'June 2011'!G:G)/1000 -> 934.9 | I26: =(E26-G26) -> -667.75688 | J26: =IF(G26=0,IF(E26>0,100,IF(D26=0,0,-100)),(I26/G26)*100) -> -71.42548722 | L26: =SUMIF('June 2011'!$B:$B, "TOTAL TELECOMMUNICATIONS", 'June 2011'!M:M)/1000 -> 1717.9 | N26: =SUMIF('June 2011'!$B:$B, "TOTAL TELECOMMUNICATIONS", 'June 2011'!L:N)/1000 -> 0 | O26: -1717.9
A27: Corporate Services | E27: =SUMIF('June 2011'!$B:$B, "TOTAL CORPORATE SERVICES", 'June 2011'!F:F)/1000 -> 559.42654 | G27: =SUMIF('June 2011'!$B:$B, "TOTAL CORPORATE SERVICES", 'June 2011'!G:G)/1000 -> 717.438 | I27: =(E27-G27) -> -158.01146 | J27: =IF(G27=0,IF(E27>0,100,IF(D27=0,0,-100)),(I27/G27)*100) -> -22.02440629 | L27: =SUMIF('June 2011'!$B:$B, "TOTAL CORPORATE SERVICES", 'June 2011'!M:M)/1000 -> 3563.118 | N27: =SUMIF('June 2011'!$B:$B, "TOTAL CORPORATE SERVICES", 'June 2011'!L:N)/1000 -> 0 | O27: -3563.118
A28: Other | E28: =SUMIF('June 2011'!$B:$B, "TOTAL OTHER", 'June 2011'!F:F)/1000 -> 2080.75864 | G28: =SUMIF('June 2011'!$B:$B, "TOTAL OTHER", 'June 2011'!G:G)/1000 -> 2401.303 | I28: =(E28-G28) -> -320.54436 | J28: =IF(G28=0,IF(E28>0,100,IF(D28=0,0,-100)),(I28/G28)*100) -> -13.34876773 | L28: =SUMIF('June 2011'!$B:$B, "TOTAL OTHER", 'June 2011'!M:M)/1000 -> 4854.632 | N28: =SUMIF('June 2011'!$B:$B, "TOTAL OTHER", 'June 2011'!L:N)/1000 -> 0 | O28: -4854.632
A29: Total General | E29: =SUM(E25:E28) -> 3288.93029 | G29: =SUM(G25:G28) -> 4853.641 | I29: =SUM(I25:I28) -> -1564.71071 | J29: =IF(G29=0,IF(E29>0,100,IF(E29=0,0,-100)),(I29/G29)*100) -> -32.23787482 | L29: =SUM(L25:L28) -> 11835.65 | N29: =SUM(N25:N28) -> 0 | O29: -11835.65
A30: Other | E30: =SUMIF('June 2011'!A:A, "TOTAL NON-UTILITY", 'June 2011'!F:F)/1000 -> 67.63065 | G30: =SUMIF('June 2011'!$A:$A, "TOTAL NON-UTILITY", 'June 2011'!G:G)/1000 -> 74.425 | I30: =(E30-G30) -> -6.79435 | J30: =IF(G30=0,IF(E30>0,100,IF(D30=0,0,-100)),(I30/G30)*100) -> -9.129123278 | L30: =SUMIF('June 2011'!$A:$A, "TOTAL NON-UTILITY", 'June 2011'!M:M)/1000 -> 224.339 | N30: =SUMIF('June 2011'!$A:$A, "TOTAL NON-UTILITY", 'June 2011'!L:N)/1000 -> 0 | O30: -224.339
A31: Total Capital | E31: =(E18+E23+E29+E30) -> 183053.9127 | G31: =(G18+G23+G29+G30) -> 204742.461 | I31: =(E31-G31) -> -21688.54828 | J31: =IF(G31=0,IF(E31>0,100,IF(E31=0,0,-100)),(I31/G31)*100) -> -10.59308762 | L31: =(L18+L23+L29+L30) -> 384566.599 | N31: =(N18+N23+N29+N30) -> 0 | O31: -384566.599
E32: =ROUND(E31-'June 2011'!F345/1000,0) -> 0 | G32: =ROUND(G31-'June 2011'!G345/1000,0) -> 0 | I32: =ROUND(I31-'June 2011'!H345/1000, 0) -> 0 | L32: =ROUND(L31-'June 2011'!M345/1000,0) -> 0 | N32: =N31-'June 2011'!L345/1000 -> 0 | O32: =O31-'June 2011'!N345/1000 -> 0
F36: January Year-to-date
J37: Original | K37: Year-end
E38: Actual | G38: Budget | I38: Variance | J38: Budget | K38: Variance
A39: Power Generation:
A40: Environmental | E40: =E11 -> 77610.62522 | G40: =G11 -> 86288.225 | I40: =E40-G40 -> -8677.59978 | J40: ='June 2011'!M46/1000 -> 176126.581 | K40: =O11 -> -176126.581
A41: Fossil Steam, CT & Other | E41: =E14+E13 -> 38729.09768 | G41: =G14+G13 -> 37932.935 | I41: =E41-G41 -> 796.16268 | J41: =SUM('June 2011'!M167+'June 2011'!M173)/1000 -> 69288.715 | K41: =O13+O14 -> -69288.715
A42: Total Power Generation | E42: =E40+E41 -> 116339.7229 | G42: =G40+G41 -> 124221.16 | I42: =I40+I41 -> -7881.4371 | J42: =SUM(J40:J41) -> 245415.296 | K42: =K40+K41 -> -245415.296
A43: Power Delivery:
A44: Transmission | E44: =E20 -> 30048.01067 | G44: =G20 -> 37963.984 | I44: =E44-G44 -> -7915.97333 | J44: ='June 2011'!M235/1000 -> 56402.921 | K44: =O20 -> -56402.921
A45: Lighting & AEM | E45: =('June 2011'!F185+'June 2011'!F186+'June 2011'!F187)/1000 -> 1770.91877 | G45: =('June 2011'!G185+'June 2011'!G186+'June 2011'!G187)/1000 -> 2273.251 | I45: -502.33223 | J45: =SUM('June 2011'!M185+'June 2011'!M186+'June 2011'!M187)/1000 -> 4514.393 | K45: =('June 2011'!N185+'June 2011'!N186+'June 2011'!N187)/1000 -> -4514.393
A46: AMI | E46: ='June 2011'!F192/1000 -> 8387.73443 | G46: ='June 2011'!G192/1000 -> 7214 | I46: 1173.73443 | J46: ='June 2011'!M192/1000 -> 15826 | K46: ='June 2011'!N192/1000 -> -15826
A47: Transformers | E47: ='June 2011'!F189/1000 -> 3393.09183 | G47: ='June 2011'!G189/1000 -> 3087 | I47: 306.09183 | J47: ='June 2011'!M189/1000 -> 6000 | K47: ='June 2011'!N189/1000 -> -6000
A48: NB - UG | E48: ='June 2011'!F191/1000 -> 1772.55712 | G48: ='June 2011'!G191/1000 -> 3327 | I48: -1554.44288 | J48: ='June 2011'!M191/1000 -> 6674 | K48: ='June 2011'!N191/1000 -> -6674
A49: NB - Other | E49: =E50-SUM(E45:E48) -> 2273.14172 | G49: =G50-SUM(G45:G48) -> 3325 | I49: -1051.85828 | J49: =J50-SUM(J45:J48) -> 6278 | K49: =K50-SUM(K45:K48) -> -6278 | L49: NB (OH) & Meters
A50: New Business Distribution | E50: ='June 2011'!F195/1000 -> 17597.44387 | G50: ='June 2011'!G195/1000 -> 19226.251 | I50: -1628.80713 | J50: ='June 2011'!M195/1000 -> 39292.393 | K50: ='June 2011'!N195/1000 -> -39292.393
A51: Other Distribution | E51: =E21-E50 -> 14473.64683 | G51: =G21-G50 -> 17624 | I51: -3150.35317 | J51: ='June 2011'!M278/1000 -> 29785 | K51: =O21-K50 -> -29785
A52: Joint Sub. & Dist. Lines | E52: =E22 -> 1238.52751 | G52: =G22 -> 779 | I52: 459.52751 | J52: ='June 2011'!M294/1000 -> 1611 | K52: =O22 -> -1611
A53: Total Power Delivery | E53: =E44+E50+E51+E52 -> 63357.62888 | G53: =G44+G50+G51+G52 -> 75593.235 | I53: -12235.60612 | J53: =J44+J50+J51+J52 -> 127091.314 | K53: =K44+K50+K51+K52 -> -127091.314
A54: Total General & Other | E54: =E30+E29 -> 3356.56094 | G54: =G30+G29 -> 4928.066 | I54: -1571.50506 | J54: =SUM('June 2011'!M337+'June 2011'!M342)/1000 -> 12059.989 | K54: =O30+O29 -> -12059.989
A55: Total Capital | E55: =E42+E53+E54 -> 183053.9127 | G55: =G42+G53+G54 -> 204742.461 | I55: -21688.54828 | J55: =J42+J53+J54 -> 384566.599 | K55: =K42+K53+K54 -> -384566.599
F58: January Year-to-date
J59: Original | K59: Year-end
E60: Actual | G60: Budget | I60: Variance | J60: Budget | K60: Variance
A61: Other Environmental:
A62: Crist Scrubber | E62: ='June 2011'!F24/1000 -> 453.66473 | G62: ='June 2011'!G24/1000 -> 0 | I62: =E62-G62 -> 453.66473 | J62: ='June 2011'!M25/1000 -> 0 | K62: ='June 2011'!N25/1000 -> 0
A63: Crist 6 SCR | E63: ='June 2011'!F25/1000 -> 243.09663 | G63: ='June 2011'!G25/1000 -> 0 | I63: =E63-G63 -> 243.09663 | J63: ='June 2011'!M26/1000 -> 81940.189 | K63: ='June 2011'!N26/1000 -> -81940.189
A64: Crist Water Conservation | E64: ='June 2011'!F30/1000 -> 0 | G64: ='June 2011'!G30/1000 -> 1375.301 | I64: =E64-G64 -> -1375.301 | J64: ='June 2011'!M30/1000 -> 7036.456 | K64: ='June 2011'!N30/1000 -> -7036.456
A65: Scherer SCR | E65: ='June 2011'!#REF!/1000 ->  | G65: ='June 2011'!#REF!/1000 ->  | J65: ='June 2011'!#REF!/1000 ->  | K65: ='June 2011'!#REF!/1000 -> 
A66: Scherer Scrubber | E66: ='June 2011'!#REF!/1000 ->  | F66: ='June 2011'!#REF! ->  | G66: ='June 2011'!#REF!/1000 ->  | J66: ='June 2011'!#REF!/1000 ->  | K66: ='June 2011'!#REF!/1000 -> 
A67: Scherer Baghouse | E67: ='June 2011'!#REF!/1000 ->  | G67: ='June 2011'!#REF!/1000 ->  | J67: ='June 2011'!#REF!/1000 ->  | K67: ='June 2011'!#REF!/1000 -> 
A68: Scherer Other Envion. | E68: ='June 2011'!#REF!/1000 ->  | G68: ='June 2011'!#REF!/1000 ->  | J68: ='June 2011'!#REF!/1000 ->  | K68: ='June 2011'!#REF!/1000 -> 
A69: Other | E69: =E40-SUM(E62:E68) ->  | G69: =G40-SUM(G62:G68) ->  | J69: =J40-SUM(J62:J68) ->  | K69: =K40-SUM(K62:K68) -> 
A70: Total Other Environmental | E70: =SUM(E62:E69) ->  | G70: =SUM(G62:G69) ->  | I70: =SUM(I62:I69) ->  | J70: =SUM(J62:J69) ->  | K70: =SUM(K62:K69) -> 
A72: Fossil Steam, CT & Other:
A73: Scherer Misc Additions | E73: ='June 2011'!#REF!/1000 ->  | G73: ='June 2011'!#REF!/1000 ->  | I73: =E73-G73 ->  | J73: ='June 2011'!#REF!/1000 ->  | K73: ='June 2011'!#REF!/1000 -> 
A74: Smith LTSA | E74: ='June 2011'!F117/1000 -> 5369.26392 | G74: ='June 2011'!G117/1000 -> 2613.072 | I74: =E74-G74 -> 2756.19192 | J74: ='June 2011'!M117/1000 -> 5228.233 | K74: ='June 2011'!M117/1000 -> 5228.233
A75: Perdido Landfill | E75: ='June 2011'!F171/1000 -> 0 | G75: ='June 2011'!G171/1000 -> 60 | I75: =E75-G75 -> -60 | J75: ='June 2011'!M171/1000 -> 120 | K75: -2753.464
A76: Other | E76: =E41-SUM(E73:E75) ->  | G76: =G41-SUM(G73:G75) ->  | I76: =E76-G76 ->  | J76: =J41-SUM(J73:J75) ->  | K76: =K41-SUM(K73:K75) -> 
A77: Total Fossile Steam, CT & Other | E77: =SUM(E73:E76) ->  | G77: =SUM(G73:G76) ->  | I77: =SUM(I73:I76) ->  | J77: =SUM(J73:J76) ->  | K77: =SUM(K73:K76) -> 
E80: January Year-to-Date
J81: Original | K81: Year-end
E82: Actual | G82: Budget | I82: Variance | J82: Budget | K82: Variance
A83: Transmission:
A84: Trans. Sub Infrastructure | E84: =('June 2011'!F198+'June 2011'!F199)/1000 -> 3221.79566 | G84: =('June 2011'!G198+'June 2011'!G199)/1000 -> 1790 | I84: =E84-G84 -> 1431.79566 | J84: =SUM('June 2011'!M198+'June 2011'!M199)/1000 -> 3650 | K84: =('June 2011'!N198+'June 2011'!N199)/1000 -> -3650
A85: Shoal River 115KV | E85: ='June 2011'!F205/1000 -> 103.18674 | G85: ='June 2011'!G205/1000 -> 0 | I85: 103.18674 | J85: ='June 2011'!M205/1000 -> 0 | K85: ='June 2011'!N205/1000 -> 0
A86: Devillers-Goulding 115KV | E86: ='June 2011'!#REF!/1000 ->  | G86: ='June 2011'!#REF!/1000 ->  | J86: ='June 2011'!#REF!/1000 ->  | K86: ='June 2011'!#REF!/1000 -> 
A87: Lullwater LB 115KV Rec. | E87: ='June 2011'!F215/1000 -> 3678.51872 | G87: ='June 2011'!G215/1000 -> 4400 | I87: -721.48128 | J87: ='June 2011'!M215/1000 -> 4900 | K87: ='June 2011'!N215/1000 -> -4900
A88: Transm ROW Clearing | E88: ='June 2011'!F219/1000 -> 921.20428 | G88: ='June 2011'!G219/1000 -> 1815.311 | I88: -894.10672 | J88: ='June 2011'!M219/1000 -> 3180.004 | K88: ='June 2011'!N219/1000 -> -3180.004
A89: Brentwood-Bayou Chico 115KV | E89: ='June 2011'!#REF!/1000 ->  | G89: ='June 2011'!#REF!/1000 ->  | J89: ='June 2011'!#REF!/1000 ->  | K89: ='June 2011'!#REF!/1000 -> 
A90: Other | E90: =E44-SUM(E84:E89) ->  | G90: =G44-SUM(G84:G89) ->  | J90: =J44-SUM(J84:J89) ->  | K90: =K44-SUM(K84:K89) -> 
A91: Total Transmission | E91: =SUM(E84:E90) ->  | G91: =SUM(G84:G90) ->  | I91: =SUM(I84:I90) ->  | J91: =SUM(J84:J90) ->  | K91: =SUM(K84:K90) -> 
E95: January Year-to-Date
J96: Original | K96: Year-end
E97: Actual | G97: Budget | I97: Variance | J97: Budget | K97: Variance
A98: New Business Distribution:
A99: Lighting & AEM | E99: =E45 -> 1770.91877 | G99: =G45 -> 2273.251 | I99: =I45 -> -502.33223 | J99: 4514.393 | K99: -4514.393
A100: AMI | E100: =E46 -> 8387.73443 | G100: 7214 | I100: 1173.73443 | J100: 15826 | K100: -15826
A101: Transformers | E101: 3393.09183 | G101: 3087 | I101: 306.09183 | J101: 6000 | K101: -6000
A102: NB - UG | E102: 1772.55712 | G102: 3327 | I102: -1554.44288 | J102: 6674 | K102: -6674
A103: NB - Other | E103: 2273.14172 | G103: 3325 | I103: -1051.85828 | J103: 6278 | K103: -6278
A104: Total NB Distribution | E104: =SUM(E99:E103) -> 17597.44387 | G104: =SUM(G99:G103) -> 19226.251 | I104: =SUM(I99:I103) -> -1628.80713 | J104: =SUM(J99:J103) -> 39292.393 | K104: =SUM(K99:K103) -> -39292.393
A106: Distribution (Non-NB):
A107: Misc Distribution Improvement | E107: =('June 2011'!F238+'June 2011'!F239+'June 2011'!F240)/1000 -> 2990.04842 | G107: =('June 2011'!G238+'June 2011'!G239+'June 2011'!G240)/1000 -> 1954 | I107: =E107-G107 -> 1036.04842 | J107: =SUM('June 2011'!M238+'June 2011'!M239+'June 2011'!M240)/1000 -> 4661 | K107: =('June 2011'!N238+'June 2011'!N239+'June 2011'!N240)/1000 -> -4661
A108: Distribution Line Minor Proj. | E108: ='June 2011'!F241/1000 -> 289.62205 | G108: ='June 2011'!G241/1000 -> 378 | I108: -88.37795 | J108: ='June 2011'!M241/1000 -> 1108 | K108: ='June 2011'!N241/1000 -> -1108
A109: Underground System Adds. | E109: =('June 2011'!F242+'June 2011'!F243)/1000 -> 1425.95627 | G109: =('June 2011'!G242+'June 2011'!G243)/1000 -> 996 | I109: 429.95627 | J109: =SUM('June 2011'!M242+'June 2011'!M243)/1000 -> 2925 | K109: =('June 2011'!N242+'June 2011'!N243)/1000 -> -2925
A110: Lullwater 115KV Capbank | E110: ='June 2011'!F255/1000 -> -77.45926 | G110: ='June 2011'!G255/1000 -> 0 | I110: -77.45926 | J110: ='June 2011'!M255/1000 -> 0 | K110: ='June 2011'!N255/1000 -> 0
A111: West Perdido Key Enh. | E111: ='June 2011'!#REF!/1000 ->  | G111: ='June 2011'!#REF!/1000 ->  | J111: ='June 2011'!#REF!/1000 ->  | K111: ='June 2011'!#REF!/1000 -> 
A112: Storm Support - UG | E112: ='June 2011'!#REF!/1000 ->  | G112: ='June 2011'!#REF!/1000 ->  | J112: ='June 2011'!#REF!/1000 ->  | K112: ='June 2011'!#REF!/1000 -> 
A113: Storm Hardening | E113: =('June 2011'!#REF!+'June 2011'!#REF!)/1000 ->  | G113: =('June 2011'!#REF!+'June 2011'!#REF!)/1000 ->  | J113: =SUM('June 2011'!#REF!+'June 2011'!#REF!)/1000 ->  | K113: =('June 2011'!#REF!+'June 2011'!#REF!)/1000 -> 
A114: Devillers Sub | E114: ='June 2011'!#REF!/1000 ->  | G114: ='June 2011'!#REF!/1000 ->  | I114: =E114-G114 ->  | J114: ='June 2011'!#REF! ->  | K114: ='June 2011'!#REF!/1000 -> 
A115: Other | E115: =E51-SUM(E107:E114) ->  | G115: =G51-SUM(G107:G114) ->  | I115: =E115-G115 ->  | J115: =J51-SUM(J107:J114) ->  | K115: =K51-SUM(K107:K114) -> 
A116: Total Distribution (Non-NB) | E116: =SUM(E107:E115) ->  | G116: =SUM(G107:G115) ->  | I116: =SUM(I107:I115) ->  | J116: =SUM(J107:J115) ->  | K116: =SUM(K107:K115) -> 

Sheet FINPLAN (hidden)
A1: Capital Expenditures -- Gulf Power Company
A2: (Thousands of Dollars)
A3: Non-SWE
A4: SWE Retail SWE Wholesale | C4: Jan | D4: Feb | E4: Mar | F4: Apr | G4: May | H4: Jun | I4: Jul | J4: Aug | K4: Sep | L4: Oct | M4: Nov | N4: Dec | O4: Current Year
A5: 1) Generation
A6: New Regulated F/H Generation | C6: 0 | O6: =SUM(C6:N6) -> 0
A7: New Unregulated F/H Generation (SWE Wholesale) | C7: 0 | O7: =SUM(C7:N7) -> 0
A8: New Unregulated F/H Generation (SWE Retail) | C8: 0 | O8: 0
A9: Total New Generation | C9: 0 | O9: 0
A10: Regulated F/H Generation: Retrofits | C10: ='June 2011'!F167/1000 -> 38728.06265 | O10: 38728.06265
A11: Nuclear Generation: Retrofits | C11: 0 | O11: 0
A12: Total Generation: Retrofits | C12: =SUM(C10:C11) -> 38728.06265 | O12: 38728.06265
A13: Regulated Generation: Environmental | C13: ='June 2011'!F46/1000 -> 77610.62522 | O13: 77610.62522
A14: Total Generation | C14: =C9+C12+C13 -> 116338.6879 | D14: =D9+D12+D13 -> 0 | E14: 0 | F14: 0 | G14: 0 | H14: 0 | I14: 0 | J14: 0 | K14: 0 | L14: 0 | M14: 0 | N14: 0 | O14: 116338.6879
A16: 2) Nuclear Fuel
A17: Farley | C17: 0
A18: Hatch | C18: 0
A19: Vogle | C19: 0
A20: Total Nuclear Fuel | C20: =SUM(C17:C19) -> 0 | D20: =SUM(D17:D19) -> 0 | E20: 0 | F20: 0 | G20: 0 | H20: 0 | I20: 0 | J20: 0 | K20: 0 | L20: 0 | M20: 0 | N20: 0 | O20: 0
A22: 3) Transmission
A23: New Generation Connections | C23: 0
A24: Other | C24: =('June 2011'!F235+'June 2011'!F294)/1000+SUMIF('June 2011'!C:C, 4321, 'June 2011'!F:F)/1000 -> 31286.53818
A25: Total Transmission | C25: =C23+C24 -> 31286.53818 | D25: =D23+D24 -> 0 | E25: 0 | F25: 0 | G25: 0 | H25: 0 | I25: 0 | J25: 0 | K25: 0 | L25: 0 | M25: 0 | N25: 0 | O25: 0
A27: 4) Distribution
A28: New Business | C28: =+SUMIF('June 2011'!C:C, 2558, 'June 2011'!F:F)/1000+SUMIF('June 2011'!C:C, 2560, 'June 2011'!F:F)/1000 -> 835.91849
A29: Other | C29: =('June 2011'!F195+'June 2011'!F278)/1000-C28 -> 31235.17221
A30: Total Distribution | C30: =C29+C28 -> 32071.0907 | D30: =D29+D28 -> 0 | E30: 0 | F30: 0 | G30: 0 | H30: 0 | I30: 0 | J30: 0 | K30: 0 | L30: 0 | M30: 0 | N30: 0 | O30: 0
A32: 5) General Plant & Miscellaneous
A33: Buildings | C33: ='June 2011'!F322/1000 -> 559.42654
A34: Fleet | C34: ='June 2011'!F302/1000 -> 381.60199
A35: Telecommunications | C35: ='June 2011'!F310/1000 -> 267.14312
A36: Other | C36: =('June 2011'!F334+'June 2011'!#REF!+'June 2011'!F342)/1000-SUMIF('June 2011'!C:C, 4321, 'June 2011'!F:F)/1000 -> 
A37: Total General Plant & Miscellaneous | C37: =SUM(C33:C36) ->  | D37: =SUM(D33:D36) -> 0 | E37: 0 | F37: 0 | G37: 0 | H37: 0 | I37: 0 | J37: 0 | K37: 0 | L37: 0 | M37: 0 | N37: 0 | O37: 0
A39: Unallocated Changes to Capital ** | C39: 0
A41: Latest Projection (Sum Above) | C41: =C14+C20+C25+C30+C37+C39 ->  | D41: =D14+D20+D25+D30+D37+D39 -> 0 | E41: 0 | F41: 0 | G41: 0 | H41: 0 | I41: 0 | J41: 0 | K41: 0 | L41: 0 | M41: 0 | N41: 0 | O41: 116338.6879
A42: Official Budget | C42: 31175.061 | O42: 277958
A43: Difference | C43: =C41-C42 ->  | D43: =D41-D42 -> 0 | E43: 0 | F43: 0 | G43: 0 | H43: 0 | I43: 0 | J43: 0 | K43: 0 | L43: 0 | M43: 0 | N43: 0 | O43: -161619.3121
A45: Total from Capital Expenditures Report | C45: ='June 2011'!F345/1000 -> 183053.9127
A46: Variance | C46: =C45-C41 -> 

Sheet Variance Explanation
A1: Gulf Power Company
A2: =Summary!A2 -> 2011-06-30
A3: YTD / Proforma Capital Variance Explanation
A4: Thousands of Dollars
A7: Business Unit | B7: YTD Variance Amount | D7: Variance Sign | E7: Variance Rank | F7: Variance Amount | G7: PE | H7: Variance Explanation | J7: Estimated Year-End Variance | L7: Year End Variance | M7: Summarized Explanation | N7: Budget Coordinator's Explanation
A9: Power Generation: | F9: Power Generation (Environmental)
D10: Positive | E10: 2 | F10: =IF($D10 = "Positive", LARGE(YTD_Variance_Environmental, $E10), SMALL(YTD_Variance_Environmental, $E10))/1000 -> 1974.22515 | G10: =INDEX(ENVIRONMENTAL, MATCH($F10*1000, YTD_Variance_Environmental, 0), 1) -> 1551 | H10: =INDEX(ENVIRONMENTAL, MATCH($F10*1000, YTD_Variance_Environmental, 0), 2) & " - " & IF(ISBLANK($M10), IF($N10 = 0, "", $N10), $M10) -> ECRC-AIR-DANIEL 1 & 2 SCRUBBER - | L10: =INDEX(ENVIRONMENTAL, MATCH(F10*1000, YTD_Variance_Environmental, 0), 12)/1000 -> -20042.892 | N10: =INDEX(ENVIRONMENTAL, MATCH(F10*1000, YTD_Variance_Environmental, 0), 9) -> 0
D11: Negative | E11: 1 | F11: =IF($D11 = "Positive", LARGE(YTD_Variance_Environmental, $E11), SMALL(YTD_Variance_Environmental, $E11))/1000 -> -10473.721 | G11: =INDEX(ENVIRONMENTAL, MATCH($F11*1000, YTD_Variance_Environmental, 0), 1) -> 1552 | H11: =INDEX(ENVIRONMENTAL, MATCH($F11*1000, YTD_Variance_Environmental, 0), 2) & " - " & IF(ISBLANK($M11), IF($N11 = 0, "", $N11), $M11) -> ECRC-AIR-DANIEL 2 SCRUBBER - | L11: =INDEX(ENVIRONMENTAL, MATCH(F11*1000, YTD_Variance_Environmental, 0), 12)/1000 -> -20100.432 | N11: =INDEX(ENVIRONMENTAL, MATCH(F11*1000, YTD_Variance_Environmental, 0), 9) -> 0
D12: Negative | E12: 4 | F12: =IF($D12 = "Positive", LARGE(YTD_Variance_Environmental, $E12), SMALL(YTD_Variance_Environmental, $E12))/1000 -> -1375.301 | G12: =INDEX(ENVIRONMENTAL, MATCH($F12*1000, YTD_Variance_Environmental, 0), 1) -> 1502 | H12: =INDEX(ENVIRONMENTAL, MATCH($F12*1000, YTD_Variance_Environmental, 0), 2) & " - " & IF(ISBLANK($M12), IF($N12 = 0, "", $N12), $M12) -> ECRC DANIEL SCRUBBER COMMON - | L12: =INDEX(ENVIRONMENTAL, MATCH(F12*1000, YTD_Variance_Environmental, 0), 12)/1000 -> -7036.456 | N12: =INDEX(ENVIRONMENTAL, MATCH(F12*1000, YTD_Variance_Environmental, 0), 9) -> 0
A13: New Generation Projects | B13: =Summary!I10 -> 0 | F13: =SUM(F$10:F$12) -> -9874.79685 | H13: Net Variance - ECRC Daniel Scrubber PE's | J13: =Summary!O10 -> 0
A14: Environmental | B14: =Summary!I11 -> -8677.59978 | C14: * | D14: Positive | E14: 1 | F14: =IF($D14 = "Positive", LARGE(YTD_Variance_Environmental, $E14), SMALL(YTD_Variance_Environmental, $E14))/1000 -> 4580.32844 | G14: =INDEX(ENVIRONMENTAL, MATCH($F14*1000, YTD_Variance_Environmental, 0), 1) -> 1279 | H14: =INDEX(ENVIRONMENTAL, MATCH($F14*1000, YTD_Variance_Environmental, 0), 2) & " - " & IF(ISBLANK($M14), IF($N14 = 0, "", $N14), $M14) -> ECRC-AIR-CRIST 6 SCR - | J14: =Summary!O11 -> -176126.581 | L14: =INDEX(ENVIRONMENTAL, MATCH(F14*1000, YTD_Variance_Environmental, 0), 12)/1000 -> -81940.189 | N14: =INDEX(ENVIRONMENTAL, MATCH(F14*1000, YTD_Variance_Environmental, 0), 9) -> 0
A15: Production Modifications | B15: =Summary!I12 -> 0 | D15: Negative | E15: 5 | F15: =IF($D15 = "Positive", LARGE(YTD_Variance_Environmental, $E15), SMALL(YTD_Variance_Environmental, $E15))/1000 -> -1285.21227 | G15: =INDEX(ENVIRONMENTAL, MATCH($F15*1000, YTD_Variance_Environmental, 0), 1) -> 1727 | H15: =INDEX(ENVIRONMENTAL, MATCH($F15*1000, YTD_Variance_Environmental, 0), 2) & " - " & IF(ISBLANK($M15), IF($N15 = 0, "", $N15), $M15) -> ENVIR-AIR-SCHERER SELECTIVE CATALYTIC REDUCT (SCR) - | J15: =Summary!O12 -> 0 | L15: =INDEX(ENVIRONMENTAL, MATCH(F15*1000, YTD_Variance_Environmental, 0), 12)/1000 -> -3051.935 | N15: =INDEX(ENVIRONMENTAL, MATCH(F15*1000, YTD_Variance_Environmental, 0), 9) -> 0
A16: Fossil Steam & CT | B16: =Summary!I13 -> 855.12765 | C16: * | D16: Negative | E16: 3 | F16: =IF($D16 = "Positive", LARGE(YTD_Variance_Environmental, $E16), SMALL(YTD_Variance_Environmental, $E16))/1000 -> -2514.286 | G16: =INDEX(ENVIRONMENTAL, MATCH($F16*1000, YTD_Variance_Environmental, 0), 1) -> 1601 | H16: =INDEX(ENVIRONMENTAL, MATCH($F16*1000, YTD_Variance_Environmental, 0), 2) & " - " & IF(ISBLANK($M16), IF($N16 = 0, "", $N16), $M16) -> ECRC-WATER-SMITH RECLAIMED WATER PROJECT UNIT 3 - | J16: =Summary!O13 -> -69168.715 | L16: =INDEX(ENVIRONMENTAL, MATCH(F16*1000, YTD_Variance_Environmental, 0), 12)/1000 -> -6000 | N16: =INDEX(ENVIRONMENTAL, MATCH(F16*1000, YTD_Variance_Environmental, 0), 9) -> 0
A17: Renewables | B17: =Summary!I14 -> -58.96497 | E17: =F17-$B$14 -> -416.3669 | F17: =SUM(F13:F16) -> -9093.96668 | J17: =Summary!O14 -> -120
A18: Hydro | B18: =Summary!I15 -> 0 | J18: =Summary!O15 -> 0
A19: Nuclear | B19: =Summary!I16 -> 0 | F19: Power Generation (Fossil Steam & CT & Renewables) | J19: =Summary!O16 -> 0
A20: Nuclear Fuel | B20: =Summary!I17 -> 0 | D20: Positive | E20: 1 | F20: =IF($D20 = "Positive", LARGE(YTD_Variance_Fossil, $E20), SMALL(YTD_Variance_Fossil, $E20))/1000 -> 3015.65716 | G20: =INDEX(FOSSIL, MATCH($F20*1000, YTD_Variance_Fossil, 0), 1) -> 1230 | H20: =INDEX(FOSSIL, MATCH($F20*1000, YTD_Variance_Fossil, 0), 2) & " - " & IF(ISBLANK($M20), IF($N20 = 0, "", $N20), $M20) -> CRIST 6 REPL REHEATER - | J20: =Summary!O17 -> 0 | L20: =INDEX(FOSSIL, MATCH(F20*1000, YTD_Variance_Fossil, 0), 12)/1000 -> -3500 | N20: =INDEX(FOSSIL, MATCH(F20*1000, YTD_Variance_Fossil, 0), 9) -> 0
A21: Total Power Generation | B21: =SUM(B13:B20) -> -7881.4371 | D21: Positive | E21: 2 | F21: 2756.19192 | G21: 1532 | H21: DANIEL 2 HP/IP TURBINE UPGRADE - | J21: =SUM(J13:J20) -> -245415.296 | L21: -5228.233 | N21: 0
D22: Positive | E22: 3 | F22: 1881.59234 | G22: 1421 | H22: SMITH - UNIT A COMBUSTION TURBINE CONTROLS REPLACEMENT - | L22: 0 | N22: 0
D23: Positive | E23: 4 | F23: 1619.91528 | G23: 1700 | H23: SCHERER-MISC. ADDITIONS & IMPROVEMENTS - | L23: =INDEX(FOSSIL, MATCH(F23*1000, YTD_Variance_Fossil, 0), 12)/1000 -> 0 | N23: =INDEX(FOSSIL, MATCH(F23*1000, YTD_Variance_Fossil, 0), 9) -> 0
D24: Negative | E24: 4 | F24: -980.47516 | G24: 1262 | H24: CRIST UNIT 6 HOT REHEAT PIPING - | L24: -2000 | N24: 0
D25: Negative | E25: 3 | F25: -1500 | G25: 1424 | H25: SMITH 3 - TURBINE CONTROLS REPLACEMENT - | L25: -1500 | N25: 0
D26: Negative | E26: 2 | F26: -2302.61056 | G26: 1842 | H26: DANIEL 1 GSU TRANSFORMER - | L26: -5005.394 | N26: 0
A27: Power Delivery: | D27: Negative | E27: 1 | F27: -2798.26885 | G27: 1094 | H27: CRIST FUEL HANDLING CRANE - | L27: -7327.603 | N27: 0
A28: Transmission | B28: =Summary!I20 -> -7915.97333 | E28: =F28-$B$16+$B$17 -> 777.90951 | F28: =SUM(F20:F27) -> 1692.00213 | J28: =Summary!O20 -> -56402.921
A29: Distribution | B29: =Summary!I21 -> -4779.1603 | J29: =Summary!O21 -> -69077.393
A30: Joint Sub. & Dist. Lines | B30: =Summary!I22 -> 459.52751 | F30: Power Delivery | J30: =Summary!O22 -> -1611
A31: Total Power Delivery | B31: =SUM(B28:B30) -> -12235.60612 | C31: * | D31: Positive | E31: 1 | F31: =IF($D31 = "Positive", LARGE(YTD_Variance_Power_Delivery, $E31), SMALL(YTD_Variance_Power_Delivery, $E31))/1000 -> 1903.22817 | G31: =INDEX(POWER_DELIVERY, MATCH($F31*1000, YTD_Variance_Power_Delivery, 0), 1) -> 2802 | H31: =INDEX(POWER_DELIVERY, MATCH($F31*1000, YTD_Variance_Power_Delivery, 0), 2) & " - " & IF(ISBLANK($M31), IF($N31 = 0, "", $N31), $M31) -> TRANS LINE INFRASTRUCTURE PROJECT - | J31: =SUM(J28:J30) -> -127091.314 | L31: =INDEX(POWER_DELIVERY, MATCH(F31*1000, YTD_Variance_Power_Delivery, 0), 12)/1000 -> -3000 | N31: =INDEX(POWER_DELIVERY, MATCH(F31*1000, YTD_Variance_Power_Delivery, 0), 9) -> 0
D32: Negative | E32: 14 | F32: -721.48128 | G32: 2853 | H32: LAGUNA BEACH 230-115KV AUTOBANK - | L32: -4900 | N32: 0
D33: Negative | E33: 13 | F33: -736.98932 | G33: 2861 | H33: LAGUNA SANTA ROSA 115KV REPLACE INSULATORS - | L33: -1492.5 | N33: 0
D34: Negative | E34: 12 | F34: -883.79502 | G34: 3407 | H34: MISC CAPITAL ACCRUALS - | L34: 0 | N34: 0
D35: Negative | E35: 11 | F35: -894.10672 | G35: 2867 | H35: HOLMES CREEK-HIGHLAND CITY NEW 230KV TL - | L35: -3180.004 | N35: 0
D36: Negative | E36: 10 | F36: -934.20741 | G36: 3483 | H36: GOULDING PROT & CONTROL SYS REPL - | L36: -1235 | N36: 0
D37: Negative | E37: 9 | F37: -953.72074 | G37: 2552 | H37: NEW BUSINESS DISTRIBUTION - | L37: -5281 | N37: 0
D38: Negative | E38: 8 | F38: -1073.69827 | G38: 3491 | H38: HENDERSON PARK SUB 115/12 KV NEW SUB AND FEEDER - | L38: -3105 | N38: 0
D39: Negative | E39: 7 | F39: -1554.44288 | G39: 2554 | H39: NEW BUSINESS - UNDERGROUND - | L39: -6674 | N39: 0
D40: Negative | E40: 5 | F40: -2324.23802 | G40: 2888 | H40: SINAI - CALLAWAY 115KV TL RECONDUCTOR - | L40: -7235 | N40: 0
D41: Negative | E41: 3 | F41: -4483.62599 | G41: 2892 | H41: CRIST FILTERED CAPBANK - | L41: -4900 | N41: 0
A42: General Plant: | E42: =F42-$B$31 -> -421.47136 | F42: =SUM(F31:F41) -> -12657.07748
F44: General Plant and Other
D45: Negative | E45: 4 | F45: =IF($D45 = "Positive", LARGE(YTD_Variance_General_Plant, $E45), SMALL(YTD_Variance_General_Plant, $E45))/1000 -> -455.27597 | G45: =INDEX(TOTAL_GENERAL_PLANT, MATCH($F45*1000, YTD_Variance_General_Plant, 0), 1) -> 4310 | H45: =INDEX(TOTAL_GENERAL_PLANT, MATCH($F45*1000, YTD_Variance_General_Plant, 0), 2) & " - " & IF(ISBLANK($M45), IF($N45 = 0, "", $N45), $M45) -> VOICE & DATA CONVERGED NETWORK - | L45: =INDEX(TOTAL_GENERAL_PLANT, MATCH(F45*1000, YTD_Variance_General_Plant, 0), 12)/1000 -> -890 | N45: =INDEX(TOTAL_GENERAL_PLANT, MATCH(F45*1000, YTD_Variance_General_Plant, 0), 9) -> 0
D46: Negative | E46: 2 | F46: =IF($D46 = "Positive", LARGE(YTD_Variance_General_Plant, $E46), SMALL(YTD_Variance_General_Plant, $E46))/1000 -> -893.58191 | G46: =INDEX(TOTAL_GENERAL_PLANT, MATCH($F46*1000, YTD_Variance_General_Plant, 0), 1) -> 4376 | H46: =INDEX(TOTAL_GENERAL_PLANT, MATCH($F46*1000, YTD_Variance_General_Plant, 0), 2) & " - " & IF(ISBLANK($M46), IF($N46 = 0, "", $N46), $M46) -> GLSCAPE AND MRO - | L46: =INDEX(TOTAL_GENERAL_PLANT, MATCH(F46*1000, YTD_Variance_General_Plant, 0), 12)/1000 -> -4022.632 | N46: =INDEX(TOTAL_GENERAL_PLANT, MATCH(F46*1000, YTD_Variance_General_Plant, 0), 9) -> 0
A47: Fleet | B47: =Summary!I25 -> -418.39801 | E47: =F47-$B$51+$B$54 -> 209.05848 | F47: =SUM(F45:F46) -> -1348.85788 | J47: =Summary!O25 -> -1700
A48: Telecommunications | B48: =Summary!I26 -> -667.75688 | J48: =Summary!O26 -> -1717.9
A49: Corporate Services | B49: =Summary!I27 -> -158.01146 | J49: =Summary!O27 -> -3563.118
A50: Other | B50: =Summary!I28 -> -320.54436 | J50: =Summary!O28 -> -4854.632
A51: Total General | B51: =SUM(B47:B50) -> -1564.71071 | C51: * | J51: =SUM(J47:J50) -> -11835.65
A54: Other | B54: =Summary!I30 -> -6.79435 | C54: * | J54: =Summary!O30 -> -224.339
A57: Total Capital | B57: =B21+B31+B51+B54 -> -21688.54828 | J57: =J21+J31+J51+J54 -> -384566.599
B58: =ROUND(B57-Summary!I31,0) -> 0 | J58: =J57-'June 2011'!N345/1000 -> 0
